Cogmind - Beta 16 @@@ ROGUE MODE // 2025.11.30 @ 03:51:32 Player: shapeshifter Result: Destroyed by Executioner with Helical Railgun Performance ------------- Evolutions (8) 4000 Regions Visited (27) 5400 Robots Destroyed (218) 1090 Value Destroyed (10204) 10204 Prototype IDs (153) 3060 Alien Tech Used (4) 800 Bonus (7612) 7612 TOTAL SCORE: 32166 Bonus ------- High Alert Combat Kills 3032 Follower Combat Kills 180 Forged Quantum Companion 2000 Registered with UFD 300 Met Optimus in HQ 500 Met Imprinter 300 Met Zhirov 300 Met Optimus at Protoforge 1000 Cogmind --------- Core Integrity 0/1450 Matter 300/300 Energy 1037/1400 System Corruption 22% Temperature Cool (13) Movement Hovering (33) Location -2/Protoforge Parts ------- > --- POWER (2) -------- Improved Quantum Reactor (fused) Improved Quantum Reactor (fused) > --- PROPULSION (8) --- Improved Antigrav System (fused) Improved Antigrav System (fused) Improved Antigrav System (fused) Experimental Antigrav System (fused) Experimental Antigrav System (fused) Gravjet Array (fused) Concept Gyrokinetic System (fused) > --- UTILITY (11) ----- Concept Antigrav Storage Unit Concept Chromion Battery (fused) Experimental Optical Array Concept Weapon Articulator (fused) Experimental Core Analyzer Experimental Armor Integrity Analyzer Microactuators (fused) Experimental Reaction Control System (fused) Centrium Light Armor Plating (fused) Concept Energy Mantle (fused) Concept Network Penetrator > --- WEAPON (2) ------- Superquantum Companion (fused) > --- INVENTORY (25) --- Hybrid Graviton Reactor Improved Antigrav System Concept Antigrav Storage Unit Crosscalibrator Transdimensional Reconstructor Terrabomb Core Cannon UFD Drillbomb Peak State ------------ > --- POWER ------------ Micro Antimatter Reactor Micro Antimatter Reactor > --- PROPULSION ------- Experimental Antigrav System Gravjet Array Gravjet Array Concept Gyrokinetic System Concept Gyrokinetic System Concept Gyrokinetic System > --- UTILITY ---------- Concept Antigrav Storage Unit Experimental Optical Array Experimental Melee Analysis Suite Concept Melee Reflex Suite Concept Weapon Articulator Experimental Core Analyzer Experimental Armor Integrity Analyzer Concept Core Shell Concept Core Shell Improved System Guard > --- WEAPON ----------- Stasis Projector Superquantum Companion > --- INVENTORY -------- Hybrid Graviton Reactor Experimental Antigrav System Experimental Antigrav System Gravjet Array Concept Gyrokinetic System Concept Antigrav Storage Unit Concept Chromion Battery Concept Weapon Articulator Concept Beam Splitter Experimental Force Field Concept Energy Mantle Concept Network Penetrator Concept Network Penetrator Crosscalibrator Transdimensional Reconstructor Terrabomb Terrabomb Core Cannon [Rating: 252] Favorites ----------- Power Improved Quantum Reactor Engine Light Ion Engine Power Core Light Nuclear Core Reactor Improved Quantum Reactor Propulsion Experimental Antigrav System Treads Armored Heavy Treads Leg Titanium Leg Wheel Wheel Hover Unit Experimental Antigrav System Flight Unit Improved Cesium-ion Thruster Utility Experimental Core Analyzer Device Concept Weapon Articulator Storage Concept Antigrav Storage Unit Processor Experimental Core Analyzer Hackware Hacking Suite Protection Centrium Light Armor Plating Weapon Superquantum Companion Energy Gun Improved EM Shotgun Energy Cannon Ion Cannon Ballistic Gun Assault Rifle Launcher Advanced Micro-nuke Launcher Special Weapon CPS Tube Slashing Weapon Superquantum Companion Special Melee Weapon Datajack Build | -11 -10 -10 -9 -9 -9 -9 -6 -6 -6 -6 -5 -5 -5 -5 -5 -5 -5 -4 -4 -4 -4 -3 -3 -3 -2 -2 -2 ------- Run | Yrd Mat Min Mat Sto Rec Scr Fac Low Low Zio Pro Fac Was Fac Upp Upp Zhi Pro Fac Was Fac Res Arm Lab Res Qua Frg Slots Evolved 16 | . . . 2 . . . 6 . . . . 2 . . . . . . 2 . . 2 . . 2 . . Power 1 | . . . . . . . 1 . . . . . . . . . . . . . . . . . . . . Propulsion 6 | . . . 1 . . . 4 . . . . . . . . . . . 1 . . . . . . . . Utility 9 | . . . 1 . . . 1 . . . . 2 . . . . . . 1 . . 2 . . 2 . . Weapon . | . . . . . . . . . . . . . . . . . . . . . . . . . . . . Parts Attached 236 | 7 8 3 18 13 5 6 20 2 . . . 7 . 5 . . 4 . 2 . 6 12 4 . 8 10 96 Power 30 | 1 3 . 2 1 . 1 4 . . . . . . 1 . . . . . . 1 3 . . . 2 11 Engine 8 | 1 2 . 1 . . 1 2 . . . . . . . . . . . . . . . . . . 1 . Core 8 | . 1 . 1 1 . . 2 . . . . . . 1 . . . . . . . 1 . . . . 1 Reactor 14 | . . . . . . . . . . . . . . . . . . . . . 1 2 . . . 1 10 Propulsion 69 | 2 2 2 6 4 2 2 11 . . . . 2 . 1 . . 1 . . . 1 2 1 . 3 1 26 Treads 5 | 2 . . 2 . . . . . . . . . . . . . . . . . . . . . . . 1 Leg 10 | . . . 3 3 2 . . . . . . . . . . . . . . . . . . . . . 2 Wheel 5 | . 2 2 1 . . . . . . . . . . . . . . . . . . . . . . . . Hover 22 | . . . . . . . . . . . . . . . . . . . . . . . . . . . 22 Flight 27 | . . . . 1 . 2 11 . . . . 2 . 1 . . 1 . . . 1 2 1 . 3 1 1 Utility 107 | 2 2 1 6 3 2 2 4 2 . . . 2 . 2 . . 3 . 2 . 4 6 2 . 5 5 52 Device 46 | 1 1 1 2 . . 1 3 1 . . . 1 . 1 . . . . 1 . 3 2 2 . 4 1 21 Storage 7 | 1 1 . 1 . . 1 . . . . . . . . . . 1 . . . . . . . . . 2 Processor 26 | . . . . . . . 1 1 . . . 1 . . . . 1 . 1 . 1 2 . . . 2 16 Hackware 10 | . . . . 1 1 . . . . . . . . 1 . . . . . . . 2 . . 1 2 2 Protection 18 | . . . 3 2 1 . . . . . . . . . . . 1 . . . . . . . . . 11 Artifact . | . . . . . . . . . . . . . . . . . . . . . . . . . . . . Weapon 30 | 2 1 . 4 5 1 1 1 . . . . 3 . 1 . . . . . . . 1 1 . . 2 7 Energy Gun 2 | . . . 1 . . . . . . . . . . 1 . . . . . . . . . . . . . Energy Cannon 9 | . . . 3 4 . . 1 . . . . . . . . . . . . . . . . . . . 1 Ballistic Gun 4 | 2 1 . . . . . . . . . . . . . . . . . . . . . . . . . 1 Ballistic Cannon . | . . . . . . . . . . . . . . . . . . . . . . . . . . . . Launcher 4 | . . . . . . . . . . . . 1 . . . . . . . . . 1 . . . . 2 Special Weapon 8 | . . . . 1 . . . . . . . 2 . . . . . . . . . . 1 . . 1 3 Impact Weapon . | . . . . . . . . . . . . . . . . . . . . . . . . . . . . Slashing Weapon 2 | . . . . . . 1 . . . . . . . . . . . . . . . . . . . 1 . Piercing Weapon . | . . . . . . . . . . . . . . . . . . . . . . . . . . . . Special Melee Weapon 1 | . . . . . 1 . . . . . . . . . . . . . . . . . . . . . . Unidentified Prototypes 35 | . . . 1 2 . 1 3 . . . . 1 . 1 . . 4 . . . . 2 . . 1 2 17 Corrupted Parts 1 | . . . . . . . . . . . . . . . . . . . . . . . . . . . 1 System Corruption 10 | . . . . . . . . . . . . . . . . . . . . . . . . . . . 10 Parts Lost 72 | . 6 1 . 3 . . 3 . . . . . . 2 . . . 1 . . 5 3 . . 1 4 43 Power 14 | . 2 . . . . . . . . . . . . . . . . . . . 3 . . . 1 1 7 Propulsion 29 | . 2 1 . 3 . . 1 . . . . . . 2 . . . . . . . 2 . . . 1 17 Utility 26 | . 1 . . . . . 2 . . . . . . . . . . 1 . . 2 1 . . . 2 17 Weapon 3 | . 1 . . . . . . . . . . . . . . . . . . . . . . . . . 2 Highest Loss Streak 9 | . 3 1 . 1 . . 1 . . . . . . 2 . . . 1 . . 4 2 . . 1 2 9 To Critical Strikes 3 | . . . . . . . . . . . . . . . . . . . . . . . . . . . 3 Average Backups 9 | 3 6 8 13 14 14 14 14 13 13 14 15 14 15 15 12 13 14 15 12 12 12 12 13 14 13 12 9 Power 1 | . . 1 . . . . 1 2 1 1 1 1 1 . . . . . . . . . 1 1 1 . 1 Propulsion . | 1 1 . 1 5 6 6 3 2 2 2 2 2 2 2 . . 1 3 2 2 2 1 1 2 3 2 . Utility 4 | . 3 6 10 7 6 5 6 5 5 6 7 6 7 7 7 8 8 7 5 5 5 4 6 7 5 3 3 Weapon 1 | . 1 1 1 . . . . 1 . 1 1 1 2 2 2 2 2 2 2 2 2 1 1 1 1 1 1 Tool/Special . | . . . . . . . . . . . . . . . . . . . . . . . . . . . . Unused Backups 39 | . 1 . 5 1 1 4 1 . 1 . . 6 . 1 . . 1 . . . . . . . . 1 16 Power 2 | . . . . . . 1 . . . . . . . . . . . . . . . . . . . . 1 Propulsion 8 | . 1 . 1 . . . . . . . . 2 . . . . . . . . . . . . . . 4 Utility 23 | . . . 3 1 1 2 1 . . . . 3 . 1 . . 1 . . . . . . . . 1 9 Weapon 2 | . . . 1 . . 1 . . . . . . . . . . . . . . . . . . . . . Tool/Special 4 | . . . . . . . . . 1 . . 1 . . . . . . . . . . . . . . 2 Average Slot Usage (%) 86 | . 98 98 99 98 98 94 86 92 93 93 93 93 94 93 93 94 96 99 96 100 96 88 91 95 89 90 85 Core 1 | . 4 . 7 11 11 7 4 12 13 13 13 11 11 11 11 11 11 11 10 10 6 2 4 4 1 1 . Reactor 6 | . . . . . . . . . . . . . . . . . . . . . 3 3 4 4 4 4 7 Treads 1 | . 17 . 1 . . . . . . . . . . . . . . . . . . . . . . . 1 Leg 2 | . . . 28 31 33 26 . . . . . . . . . . . . . . . . . . . . . Hover 17 | . . . . . . . . . . . . . . . . . . . . . . . . . . . 20 Flight 2 | . . . . . . 6 45 46 46 46 46 41 41 41 41 41 41 41 42 42 42 36 33 33 29 29 . Device 14 | . 13 14 11 10 1 1 9 13 13 13 13 16 17 16 16 17 12 10 8 10 12 7 6 9 14 19 15 Storage 8 | . 14 14 11 11 11 11 6 6 6 6 6 5 5 5 5 5 5 5 5 5 5 4 4 4 4 4 7 Processor 15 | . . . . . . . 4 6 6 6 6 10 11 11 11 11 15 17 19 21 17 22 21 19 15 10 17 Protection 4 | . . . 10 11 11 8 1 . . . . . . . . . . . . . . 1 . . . . 4 Energy Cannon 1 | . . . 18 21 16 12 . . . . . . . . . . . . . . . . . . . . . Special Weapon 1 | . . . . . . . . . . . . . . . . . 2 4 5 5 1 . 1 4 4 2 1 Slashing Weapon 3 | . . . . . . 4 6 6 6 6 6 5 5 5 5 5 5 5 5 5 5 4 4 4 4 4 3 Peak Build Rating 252 | 7 12 10 29 29 25 33 73 72 76 72 73 92 84 91 88 89 100 97 107 107 109 128 132 132 146 156 252 Average Rating 199 | 5 8 8 25 26 23 26 61 71 72 72 72 83 84 84 87 88 91 96 105 107 104 112 126 132 136 143 227 On Entrance 74 | . 7 10 8 29 25 20 33 64 72 72 72 73 84 84 86 88 89 97 92 107 107 92 123 132 132 133 144 Avg Prop Armor Cover (%) 8 | . . . 3 . . . . . . . . . . . . . . . . . 9 3 . . . . 12 Naked Turns . | . . . . . . . . . . . . . . . . . . . . . . . . . . . . Heaviest Build 88 | 14 29 27 41 41 37 36 47 40 40 40 40 41 41 41 39 39 42 42 43 43 48 51 52 52 53 53 88 Greatest Support 128 | 40 40 20 51 51 37 37 46 40 40 40 40 42 42 42 42 42 42 42 51 48 48 51 61 52 53 63 128 Greatest Overweight (x) 2 | . 1 2 1 1 . 1 1 . . . . . . . . . 1 . . . . 1 . . 1 . 1 Average Overweight (x) . | . . 1 . . . . . . . . . . . . . . . . . . . . . . . . . Largest Inventory Capacity 25 | 8 15 15 15 15 15 15 15 15 15 15 15 15 15 15 15 15 15 15 15 15 15 15 15 15 15 15 25 Average Capacity 23 | 7 10 15 15 15 15 15 15 15 15 15 15 15 15 15 15 15 15 15 15 15 15 15 15 15 15 15 24 Most Carried 25 | 7 8 10 15 15 15 15 15 15 15 15 15 15 15 15 13 14 15 15 14 12 14 15 15 15 15 15 25 Average Carried 18 | 3 6 8 13 14 14 14 14 14 14 14 15 14 15 14 12 13 14 14 12 12 12 12 14 15 14 14 19 Final Capacity 25 | 8 15 15 15 15 15 15 15 15 15 15 15 15 15 15 15 15 15 15 15 15 15 15 15 15 15 15 25 Final Carried 23 | 6 8 10 15 15 15 15 15 15 14 15 15 15 15 13 12 14 15 15 12 12 11 14 15 15 14 14 23 Class Distribution -------------------- 81% | Scavenger-Mutant 5% | Mutant 4% | Scavenger-Sprinter 3% | Sprinter Dominant Class ---------------- Mutant | -10/Materials Mutant | -10/Mines Mutant | -9/Materials Mutant | -9/Storage Scavenger-Mutant | -9/Recycling Commander-Mutant | -9/Scraptown Sprinter | -6/Factory Sprinter | -6/Lower Caves Sprinter | -6/Lower Caves Sprinter | -6/Zion Sprinter | -5/Proximity Caves Scout | -5/Factory Scout | -5/Waste Scout | -5/Factory Scout | -5/Upper Caves Scout | -5/Upper Caves Scout | -5/Zhirov Scout | -4/Proximity Caves Sprinter | -4/Factory Sprinter | -4/Waste Sprinter | -4/Factory Sprinter | -3/Research Hacker-Sprinter | -3/Armory Hacker-Sprinter | -3/Lab Hacker-Sprinter | -2/Research Hacker-Sprinter | -2/Quarantine Scavenger-Mutant | -2/Protoforge Resources | -11 -10 -10 -9 -9 -9 -9 -6 -6 -6 -6 -5 -5 -5 -5 -5 -5 -5 -4 -4 -4 -4 -3 -3 -3 -2 -2 -2 ----------- Run | Yrd Mat Min Mat Sto Rec Scr Fac Low Low Zio Pro Fac Was Fac Upp Upp Zhi Pro Fac Was Fac Res Arm Lab Res Qua Frg Matter Collected 5735 | 282 390 99 255 152 138 145 270 30 10 . . . . 63 114 . . 128 . 52 30 130 135 . 85 180 3047 Remotely 89 | . . . . . . . . . . . . . . . . . . . . . . . . . . . 89 Salvage Created 10670 | 124 646 128 1445 868 529 . 530 10 . . 76 108 . 63 . . . 31 . . 151 273 173 . . 468 5047 Parts 525 | 8 47 15 82 40 21 . 23 1 . . 1 2 . 5 . . . 2 . . 7 9 13 . . 23 226 Haulers Intercepted 10 | . . . 3 1 . . 4 . . . . . . . . . . . . . 1 1 . . . . . Recyclers Shooed 2 | 1 . . . . 1 . . . . . . . . . . . . . . . . . . . . . . Parts Field Recycled . | . . . . . . . . . . . . . . . . . . . . . . . . . . . . Retrieved Matter . | . . . . . . . . . . . . . . . . . . . . . . . . . . . . Parts Self-Destructed 2 | . . . . . . . . . . . 2 . . . . . . . . . . . . . . . . Prevented . | . . . . . . . . . . . . . . . . . . . . . . . . . . . . Parts Restored 4 | . . . . . . . . . . . . . . . . . . . . . . . . . . . 4 Faulty 4 | . . . . . . . . . . . . . . . . . . . . . . . . . . . 4 Kills | -11 -10 -10 -9 -9 -9 -9 -6 -6 -6 -6 -5 -5 -5 -5 -5 -5 -5 -4 -4 -4 -4 -3 -3 -3 -2 -2 -2 ------- Run | Yrd Mat Min Mat Sto Rec Scr Fac Low Low Zio Pro Fac Was Fac Upp Upp Zhi Pro Fac Was Fac Res Arm Lab Res Qua Frg Combat Hostiles Destroyed 164 | . 15 5 27 21 8 . 1 1 . . 1 . . . . . . . . . . . 2 . . 5 78 Melee 72 | . . . . . . . 1 1 . . 1 . . . . . . . . . . . 2 . . 5 62 Guns 25 | . 15 5 5 . . . . . . . . . . . . . . . . . . . . . . . . Cannons 62 | . . . 22 20 7 . . . . . . . . . . . . . . . . . . . . . 13 Classes Destroyed 28 | 3 3 . 5 . 1 . 1 1 . . 1 . . 1 . . . 1 . . . . . . . . 11 Worker 5 | 1 1 . . . . . 1 . . . . . . 1 . . . . . . . 1 . . . . . Builder 2 | . . . . . . . 1 . . . . . . 1 . . . . . . . . . . . . . Tunneler 3 | 1 2 . . . . . . . . . . . . . . . . . . . . . . . . . . Hauler 10 | . . . 3 1 . . 4 . . . . . . . . . . . . . 1 1 . . . . . Recycler 7 | 1 . . 1 . 1 . 1 . . . . 1 . . . . . . . . . 1 . . . 1 . Carrier 2 | . . . . . . . . . . . . . . . . . . . . . . . . . . . 2 Mechanic 4 | . . . . . . . . . . . . . . 1 . . . . . . . . . . . . 3 Operator 4 | . . . 1 1 . . . . . . . . . . . . . . . . . . 1 . . 1 . Drone 22 | . . . . . . . . . . . 1 . . . . . . . . . . . . . . 2 19 Watcher 13 | . 3 . 5 . . . . . . . . . . . . . . . . . 1 1 . . . 2 1 Swarmer 19 | . 3 3 8 2 . . . . . . . . . . . . . . . . . . . . . . 3 Saboteur 2 | . . . . . . . . . . . . . . . . . . . . . . . . . . . 2 Grunt 44 | . 12 2 7 16 1 . . . . . . . . . . . . . . . . . . . . . 6 Brawler 5 | . . . 1 . . . . . . . . . . . . . . . . . . . . . . . 4 Duelist 4 | . . . 1 . 1 . . . . . . . . . . . . . . . . . . . . . 2 Protector 6 | . . . . . . . . . . . . . . . . . . . . . . . . . . . 6 Researcher 6 | . . . . . . . . . . . . . . . . . . . . . . . . . . . 6 Sentry 21 | . . . 10 3 4 . . . . . . . . . . . . . . . . . 1 . . . 3 Specialist 1 | . . . . . . . . . . . . . . . . . . . . . . . . . . . 1 Hunter 2 | . . . . . . . . . . . . . . . . . . . . . . . . . . . 2 Programmer 7 | . . . . . 2 . 1 . . . . . . . . . . . . . . . 1 . . 3 . Decapitator 6 | . . . . . . . . . . . . . . . . . . . . . . . . . . . 6 Immortal 2 | . . . . . . . . . . . . . . . . . . . . . . . . . . . 2 Striker 5 | . . . . . . . . . . . . . . . . . . . . . . . . . . . 5 Executioner 4 | . . . . . . . . . . . . . . . . . . . . . . . . . . . 4 V-Series 12 | . . . . . . . . . . . . . . . . . . . . . . . . . . . 12 Scrapoid 1 | . . . . . . . . . . . . . . . . . . . . . . . . . . . 1 Packrat 1 | . . . . . . . . . . . 1 . . . . . . . . . . . . . . . . Samaritan 1 | . . . . . . . . . . . . . . . . . . 1 . . . . . . . . . Thief 1 | . . . . . . . . 1 . . . . . . . . . . . . . . . . . . . Best Kill Streak 8 | 2 8 3 5 4 3 . 3 3 . . 1 1 . 1 . . . . . . 2 2 1 . . 3 6 Combat Bots Only 5 | . 3 3 4 4 3 . 1 1 . . 1 . . . . . . . . . . . 1 . . 3 5 Max Kills in Single Turn 2 | 1 2 1 1 2 1 . 1 1 . . 1 1 . 1 . . . 1 . . 1 1 1 . . 1 2 Gunslinging . | . . . . . . . . . . . . . . . . . . . . . . . . . . . . Exploded . | . . . . . . . . . . . . . . . . . . . . . . . . . . . . Melee 2 | . . . . . . . 1 1 . . 1 . . . . . . . . . . . 1 . . 1 2 Uniques/NPCs Destroyed . | . . . . . . . . . . . . . . . . . . . . . . . . . . . . Combat | -11 -10 -10 -9 -9 -9 -9 -6 -6 -6 -6 -5 -5 -5 -5 -5 -5 -5 -4 -4 -4 -4 -3 -3 -3 -2 -2 -2 -------- Run | Yrd Mat Min Mat Sto Rec Scr Fac Low Low Zio Pro Fac Was Fac Upp Upp Zhi Pro Fac Was Fac Res Arm Lab Res Qua Frg Hostile Shots Fired 1036 | . 90 37 88 108 10 . 61 7 3 . . . . 19 . 1 . 12 . . 64 35 31 . 7 44 419 Missed 425 | . 20 12 29 30 2 . 27 3 3 . . . . 8 . 1 . 8 . . 35 15 19 . 4 22 187 Deflected 7 | . . . . . . . . . . . . . . . . . . . . . . . . . . 2 5 Hits 611 | . 70 25 59 78 8 . 34 4 . . . . . 11 . . . 4 . . 29 20 12 . 3 22 232 Melee 55 | . . . . . . . 1 1 . . . . . . . . . . . . 9 . . . . . 44 Projectile 556 | . 70 25 59 78 8 . 33 3 . . . . . 11 . . . 4 . . 20 20 12 . 3 22 188 AOE 16 | . . . . . . . . . . . . . . . . . . . . . . . . . . . 16 Critical Strikes 38 | . 1 1 . . . . . . . . . . . . . . . . . . 4 . . . . 1 31 Actively Blocked 7 | . . . . . . . . . . . . . . . . . . . . . 1 . . . . . 6 Part Disruptions 5 | . . . . . . . . . . . . . . . . . . . . . . . . . . . 5 Damage Taken 13410 | . 872 253 740 878 114 . 521 56 . . 28 . . 161 . . . 75 . 49 756 368 338 . 85 493 7623 Core 2492 | . 174 56 63 89 . . 121 18 . . 28 . . 22 . . . 19 . . 307 81 114 . . 114 1286 Absorbed by Shields 929 | . . . . . . . 43 . . . . . . . . . . . . . . . . . . . 886 Redirected to Shielding 860 | . . . 3 . . . . . . . . . . . . . . . . . 85 21 . . . . 751 Regen/Repaired (Parts) 193 | . . . . . . . . . . 28 . . . 14 . . . . . 35 . . . . . . 116 Core Remaining (%) 71 | 100 . 8 . . . 62 . . . . 80 . . . . . . 95 . . 73 . . 85 . . . Volleys Fired 287 | 4 66 16 83 62 16 . 2 . 2 . . 4 . . . . 4 2 1 . 6 . 2 . . . 17 Largest 2 | 2 2 2 2 2 2 . 1 . 1 . . 1 . . . . 1 1 1 . 1 . 1 . . . 1 Hottest 300 | 40 40 40 120 120 136 . 85 . 85 . . 85 . . . . 7 85 7 . 85 . 7 . . . 300 Shots Fired 530 | 8 132 32 165 125 28 . 2 . 2 . . 4 . . . . 4 2 1 . 6 . 2 . . . 17 Gun 196 | 8 132 32 24 . . . . . . . . . . . . . . . . . . . . . . . . Cannon 312 | . . . 141 125 28 . 2 . 2 . . 3 . . . . . 2 . . 6 . . . . . 3 Launcher 2 | . . . . . . . . . . . . . . . . . . . . . . . . . . . 2 Special 20 | . . . . . . . . . . . . 1 . . . . 4 . 1 . . . 2 . . . 12 Kinetic 196 | 8 132 32 24 . . . . . . . . . . . . . . . . . . . . . . . . Thermal 312 | . . . 141 125 28 . 2 . 2 . . 3 . . . . . 2 . . 6 . . . . . 3 Explosive 2 | . . . . . . . . . . . . . . . . . . . . . . . . . . . 2 Electromagnetic . | . . . . . . . . . . . . . . . . . . . . . . . . . . . . Robot Hit Streak 13 | 5 7 9 13 7 8 . . . . . . 9 . . . . 11 . 2 . . . 1 . . . 4 Robot Miss Streak 6 | 1 6 6 5 3 1 . . . . . . . . . . . 1 . . . . . 1 . . . 2 Penetration Max . | . . . . . . . . . . . . . . . . . . . . . . . . . . . . Secondary Targets 2 | . 1 1 . . . . . . . . . . . . . . . . . . . . . . . . . Max Gunslinging Chain 1 | . 1 1 . . . . . . . . . . . . . . . . . . . . . . . . . Autonomous 28 | . . . . . . . . . . . . . . . . . . . . . . . . . . . 28 Shots Hit Robots 574 | 5 74 18 104 82 35 . 14 3 . . 3 2 . 3 . . 3 2 1 . 2 9 6 . . 16 192 Core Hits 247 | 4 39 8 40 25 9 . 5 1 . . 1 1 . 2 . . . . . . 2 3 2 . . 4 101 Critical Kills 3 | . . . . 1 1 . . . . . . . . . . . . . . . . . . . . . 1 Critical Parts Destroyed . | . . . . . . . . . . . . . . . . . . . . . . . . . . . . Critical Strikes 19 | . . . . 1 1 . . . . . . . . . . . . . . . . . . . . . 17 Meltdown 2 | . . . . 1 1 . . . . . . . . . . . . . . . . . . . . . . Destroy 1 | . . . . . . . . . . . . . . . . . . . . . . . . . . . 1 Melee Attacks 347 | . . . . . 18 . 17 4 . . 4 2 . 4 . . . 2 . 3 7 21 15 . 1 37 212 Impact . | . . . . . . . . . . . . . . . . . . . . . . . . . . . . Slashing 329 | . . . . . . . 17 4 . . 4 2 . 4 . . . 2 . 3 7 21 15 . 1 37 212 Piercing . | . . . . . . . . . . . . . . . . . . . . . . . . . . . . Sneak Attacks 90 | . . . . . 17 . 8 . . . 1 1 . 3 . . . 2 . . 1 5 1 . . 2 49 Combat Hostiles 12 | . . . . . . . 1 . . . . . . . . . . . . . . . 1 . . . 10 Follow-up Attacks 6 | . . . . . . . . . . . . . . . . . . . . . . . . . . . 6 Martial Strikes 14 | . . . . . . . . . . . . . . . . . . . . . . . . . . . 14 Damage Inflicted 31793 | 70 836 224 2227 1979 492 . 964 107 . . 177 100 . 249 . . . 174 . . 165 686 365 . . 1539 21439 Guns 1307 | 70 836 224 177 . . . . . . . . . . . . . . . . . . . . . . . . Cannons 7053 | . . . 2050 1970 492 . . . . . . . . . . . . . . . . . . . . . 2541 Explosions 446 | . . . . . . . . . . . . . . . . . . . . . . . . . . . 446 Melee 22962 | . . . . . . . 948 107 . . 177 100 . 249 . . . 174 . . 165 686 365 . . 1539 18452 Ramming 25 | . . . . 9 . . 16 . . . . . . . . . . . . . . . . . . . . Kinetic 1307 | 70 836 224 177 . . . . . . . . . . . . . . . . . . . . . . . . Thermal 4712 | . . . 2050 1970 492 . . . . . . . . . . . . . . . . . . . . . 200 Explosive 446 | . . . . . . . . . . . . . . . . . . . . . . . . . . . 446 Electromagnetic . | . . . . . . . . . . . . . . . . . . . . . . . . . . . . Impact . | . . . . . . . . . . . . . . . . . . . . . . . . . . . . Slashing 22962 | . . . . . . . 948 107 . . 177 100 . 249 . . . 174 . . 165 686 365 . . 1539 18452 Piercing . | . . . . . . . . . . . . . . . . . . . . . . . . . . . . Phasic 2341 | . . . . . . . . . . . . . . . . . . . . . . . . . . . 2341 Highest Corruption 22 | . . . 3 3 3 . 1 1 1 1 . . . . . . . . . 9 10 2 3 3 . 3 22 Average Corruption 19 | . . . 1 3 3 . 1 1 1 1 . . . . . . . . . 9 9 1 2 3 . 2 21 Corruption Purged . | . . . . . . . . . . . . . . . . . . . . . . . . . . . . Corruption Blocked . | . . . . . . . . . . . . . . . . . . . . . . . . . . . . Effects 2000 | . . . 8 16 14 . 1 1 . . . . . . . . . . . 3 7 2 4 . . 4 1940 Message Errors 649 | . . . 1 9 3 . . 1 . . . . . . . . . . . . 2 . 1 . . 1 631 Matter Fused 234 | . . . 2 2 7 . . . . . . . . . . . . . . . . . 2 . . 1 220 Heat Flow Errors 304 | . . . 3 1 1 . . . . . . . . . . . . . . . 3 1 . . . 1 294 Energy Discharges 311 | . . . . 2 2 . . . . . . . . . . . . . . . . . 1 . . . 306 Parts Rejected 2 | . . . . . . . . . . . . . . . . . . . . . . . . . . . 2 Parts Fused 21 | . . . . . . . . . . . . . . . . . . . . . . . . . . . 21 Data Loss (minor) 292 | . . . 1 . . . . . . . . . . . . . . . . 2 1 1 . . . 1 286 Data Loss (major) 117 | . . . . 1 . . . . . . . . . . . . . . . 1 . . . . . . 115 Misfires 2 | . . . 1 1 . . . . . . . . . . . . . . . . . . . . . . . Alerts 61 | . . . . . . . 1 . . . . . . . . . . . . . . . . . . . 60 Misdirections 6 | . . . . . . . . . . . . . . . . . . . . . 1 . . . . . 5 Weapon Failures 1 | . . . . . 1 . . . . . . . . . . . . . . . . . . . . . . Overload Shots . | . . . . . . . . . . . . . . . . . . . . . . . . . . . . Overflow Damage 4016 | . . . 44 2 . . 130 7 . . 68 . . 32 . . . 133 . . . 181 62 . . 548 2809 Projectiles 168 | . . . 44 2 . . . . . . . . . . . . . . . . . . . . . . 122 Explosions 6 | . . . . . . . . . . . . . . . . . . . . . . . . . . . 6 Melee 3842 | . . . . . . . 130 7 . . 68 . . 32 . . . 133 . . . 181 62 . . 548 2681 Knockbacks . | . . . . . . . . . . . . . . . . . . . . . . . . . . . . Impact . | . . . . . . . . . . . . . . . . . . . . . . . . . . . . Kinetic . | . . . . . . . . . . . . . . . . . . . . . . . . . . . . Secondary . | . . . . . . . . . . . . . . . . . . . . . . . . . . . . Self-Inflicted Damage 8 | . . . . . . . 8 . . . . . . . . . . . . . . . . . . . . Shots . | . . . . . . . . . . . . . . . . . . . . . . . . . . . . Rammed 1 | . . . . . . . 1 . . . . . . . . . . . . . . . . . . . . Targets Rammed 4 | . . . . 3 . . 1 . . . . . . . . . . . . . . . . . . . . Kicked 3 | . . . . 3 . . . . . . . . . . . . . . . . . . . . . . . Crushed . | . . . . . . . . . . . . . . . . . . . . . . . . . . . . Highest Temperature 363 | . 24 27 189 363 234 . 226 72 162 126 60 45 18 81 16 20 7 40 204 126 301 205 318 . . 197 210 Average Temperature 60 | . 6 13 51 85 95 . 66 30 78 46 21 13 12 26 7 9 3 4 83 50 117 46 145 . . 70 83 Received Heat Transfer 1957 | . 450 99 267 414 30 . 105 27 . . . . . 36 . . . . . 9 33 9 9 . 18 27 424 Effects 7 | . . . . 1 1 . . . . . . . . . . . . . . . 1 . 1 . . . 3 Energy Bleed 3 | . . . . . 1 . . . . . . . . . . . . . . . 1 . 1 . . . . Interference 3 | . . . . . . . . . . . . . . . . . . . . . . . . . . . 3 Damage (minor) 1 | . . . . 1 . . . . . . . . . . . . . . . . . . . . . . . Siege Activations . | . . . . . . . . . . . . . . . . . . . . . . . . . . . . Martial Activations . | . . . . . . . . . . . . . . . . . . . . . . . . . . . . Shielding Activations . | . . . . . . . . . . . . . . . . . . . . . . . . . . . . Robots Disrupted 2 | . . . . . . . . . . . . . . . . . . . . . . . . . . . 2 Combat Hostiles 2 | . . . . . . . . . . . . . . . . . . . . . . . . . . . 2 Robots Corrupted . | . . . . . . . . . . . . . . . . . . . . . . . . . . . . Combat Hostiles . | . . . . . . . . . . . . . . . . . . . . . . . . . . . . Parts Fried . | . . . . . . . . . . . . . . . . . . . . . . . . . . . . Impact Corruptions . | . . . . . . . . . . . . . . . . . . . . . . . . . . . . Robots Melted 2 | . . . . 1 1 . . . . . . . . . . . . . . . . . . . . . . Combat Hostiles 2 | . . . . 1 1 . . . . . . . . . . . . . . . . . . . . . . Parts Melted 26 | . . . 7 14 3 . . . . . . . . . . . . . . . . . 1 . . . 1 Heat Transferred 7326 | . . . 3293 3182 851 . . . . . . . . . . . . . . . . . . . . . . Parts Sabotaged 2 | . . . . . . . . . . . . . . . . . . . . . . . . . . . 2 Parts Stolen 1 | . . . . . . . . 1 . . . . . . . . . . . . . . . . . . . Parts Stripped 35 | . . . . . . . . . . . . . . . . . . . . . . . . . . . 35 Power Chain Reactions . | . . . . . . . . . . . . . . . . . . . . . . . . . . . . Alert | -11 -10 -10 -9 -9 -9 -9 -6 -6 -6 -6 -5 -5 -5 -5 -5 -5 -5 -4 -4 -4 -4 -3 -3 -3 -2 -2 -2 ------- Run | Yrd Mat Min Mat Sto Rec Scr Fac Low Low Zio Pro Fac Was Fac Upp Upp Zhi Pro Fac Was Fac Res Arm Lab Res Qua Frg Maximum Alert Level 4 | . . . 1 2 . . 1 . . . . 2 . 1 . . . . . . . 1 1 . . 1 4 Low Security (%) 8 | 100 100 100 70 23 100 . 94 . . . . . 100 70 . . . . 100 100 100 89 11 . 100 47 . Level 1 3 | . . . 29 62 . . 5 . . . . 91 . 30 . . . . . . . 10 88 . . 52 . Level 2 . | . . . . 14 . . . . . . . 9 . . . . . . . . . . . . . . . Level 3 21 | . . . . . . . . . . . . . . . . . . . . . . . . . . . 24 Level 4 66 | . . . . . . . . . . . . . . . . . . . . . . . . . . . 74 Level 5 . | . . . . . . . . . . . . . . . . . . . . . . . . . . . . High Security . | . . . . . . . . . . . . . . . . . . . . . . . . . . . . Max Security . | . . . . . . . . . . . . . . . . . . . . . . . . . . . . Peak Influence 1536 | 10 163 90 357 432 157 . 215 . . . . 473 162 294 . . . . . 80 168 308 370 . 68 395 1536 Initial 300 | . 3 48 19 133 138 . . . . . . 300 162 106 . . . . . . 35 34 161 . . 32 185 Average 1107 | . 84 39 139 284 93 . 55 . . . . 310 159 159 . . . . . 46 68 61 258 . 25 225 1227 Influence Increases 8284 | 15 540 120 846 631 328 . 350 45 . . 10 583 . 258 . . . . . 116 371 422 412 . 78 588 2571 Destroy 0b10 Robot/C 3120 | . 300 100 540 420 160 . 20 . . . . 160 . . . . . . . . 80 . 40 . . 60 1240 Destroy 0b10 Robot/NC 415 | 15 30 . 50 10 10 . 35 . . . 10 10 . 15 . . . . . . 30 20 5 . . 30 145 Destroy Leader 570 | . 66 20 166 102 . . 18 . . . . 32 . . . . . . . . 36 4 20 . . 14 92 Allied During Kill 31 | . . . . . 17 . . . . . . 3 . . . . . . . . 8 . . . . . 3 Successful Hack 343 | . 38 . 29 41 21 . 20 . . . . 12 . 16 . . . . . . . 31 24 . . 67 44 Select Force Hacks 150 | . 30 . . . 120 . . . . . . . . . . . . . . . . . . . . . . Disable Machine 495 | . . . 15 15 . . . . . . . 30 . . . . . . . . 15 . 60 . . 60 300 Anti-Garrison Action 150 | . . . . . . . . . . . . . . . . . . . . . . . . . . . 150 Destroy Structure 460 | . 1 . 16 13 . . 2 . . . . 36 . 2 . . . . . 116 82 22 8 . 3 27 132 Advance Influence 300 | . . . . . . . . . . . . 300 . . . . . . . . . . . . . . . Partial Spotted 270 | . . . 15 . . . . . . . . . . . . . . . . . 30 45 60 . 15 30 75 Lose Combat Pursuer 1980 | . 75 . 15 30 . . 255 45 . . . . . 225 . . . . . . 90 300 195 . 60 300 390 Influence Decreases 6748 | 10 421 194 579 594 654 28 235 93 43 24 10 120 311 146 149 63 52 . . 66 355 180 387 333 20 316 1365 Entered New Map 1836 | . 2 76 31 184 216 28 . 43 13 24 . . 301 46 99 23 52 . . . 15 32 147 333 . 26 145 Time Decay 3616 | 10 359 108 548 380 398 . 115 50 30 . 10 100 10 80 50 40 . . . 40 70 138 140 . 20 150 770 Search Patrol Dispatched 300 | . . . . . . . 100 . . . . . . . . . . . . . . . 100 . . 100 . Lost Part 670 | . 60 10 . 30 . . 20 . . . . . . 20 . . . . . . 50 10 . . . 40 430 Lost Ally 326 | . . . . . 40 . . . . . . 20 . . . . . . . 26 220 . . . . . 20 Squads Dispatched 57 | . 2 . . 5 . . 5 . . . . 5 . 7 . . . 1 . . 10 5 5 . 2 2 8 Investigation 32 | . 1 . . 1 . . 3 . . . . 3 . 5 . . . 1 . . 6 3 2 . 2 . 5 Extermination 10 | . . . . . . . 1 . . . . 1 . 1 . . . . . . 1 2 2 . . 2 . Reinforcement 12 | . 1 . . 1 . . 1 . . . . 1 . 1 . . . . . . 3 . 1 . . . 3 Assault . | . . . . . . . . . . . . . . . . . . . . . . . . . . . . Garrison 3 | . . . . 3 . . . . . . . . . . . . . . . . . . . . . . . Intercept . | . . . . . . . . . . . . . . . . . . . . . . . . . . . . Searches Triggered 3 | . . . . . . . 1 . . . . . . . . . . . . . . . 1 . . 1 . Construction Impeded 1 | . . . . . . . . . . . . . . . . . . . . . 1 . . . . . . Haulers Reinforced . | . . . . . . . . . . . . . . . . . . . . . . . . . . . . Active Scanning Responses . | . . . . . . . . . . . . . . . . . . . . . . . . . . . . Cargo Convoy Interrupts . | . . . . . . . . . . . . . . . . . . . . . . . . . . . . Stealth | -11 -10 -10 -9 -9 -9 -9 -6 -6 -6 -6 -5 -5 -5 -5 -5 -5 -5 -4 -4 -4 -4 -3 -3 -3 -2 -2 -2 --------- Run | Yrd Mat Min Mat Sto Rec Scr Fac Low Low Zio Pro Fac Was Fac Upp Upp Zhi Pro Fac Was Fac Res Arm Lab Res Qua Frg Distress Signals 105 | . 1 . 2 3 . . 1 . . . . . . 1 . . . . . . 2 1 5 . . 1 88 Communications Jammed 19 | . . . . . . . . . . . . . . . . . . . . . . . . . . 5 14 Distress Signals 14 | . . . . . . . . . . . . . . . . . . . . . . . . . . . 14 Times Spotted 466 | . 24 5 37 32 5 . 25 7 3 . . 2 4 20 . 3 . 3 2 2 29 20 27 . 6 23 187 Peak Tracking Total 19 | . 3 3 5 6 2 . 7 3 3 . . 3 4 10 . 3 . 3 2 1 19 16 10 . 5 13 17 Tactical Retreats 43 | . 3 . 1 2 . . 5 1 . . . . . 3 . . . . . . 1 4 4 . 2 5 12 Traps | -11 -10 -10 -9 -9 -9 -9 -6 -6 -6 -6 -5 -5 -5 -5 -5 -5 -5 -4 -4 -4 -4 -3 -3 -3 -2 -2 -2 ------- Run | Yrd Mat Min Mat Sto Rec Scr Fac Low Low Zio Pro Fac Was Fac Upp Upp Zhi Pro Fac Was Fac Res Arm Lab Res Qua Frg Traps Triggered 14 | . 1 . 2 . . . 3 . . . . 2 . . . . . . 1 . 1 1 . . . . 3 Indirectly . | . . . . . . . . . . . . . . . . . . . . . . . . . . . . Trap Hack Attempts . | . . . . . . . . . . . . . . . . . . . . . . . . . . . . Triggered . | . . . . . . . . . . . . . . . . . . . . . . . . . . . . Disarmed 9 | . . . . 5 . . . . . . . . . . . . . . . . . . . . . . 4 Reprogrammed . | . . . . . . . . . . . . . . . . . . . . . . . . . . . . Reused . | . . . . . . . . . . . . . . . . . . . . . . . . . . . . Traps Extracted . | . . . . . . . . . . . . . . . . . . . . . . . . . . . . Installed . | . . . . . . . . . . . . . . . . . . . . . . . . . . . . Triggered . | . . . . . . . . . . . . . . . . . . . . . . . . . . . . Machines | -11 -10 -10 -9 -9 -9 -9 -6 -6 -6 -6 -5 -5 -5 -5 -5 -5 -5 -4 -4 -4 -4 -3 -3 -3 -2 -2 -2 ---------- Run | Yrd Mat Min Mat Sto Rec Scr Fac Low Low Zio Pro Fac Was Fac Upp Upp Zhi Pro Fac Was Fac Res Arm Lab Res Qua Frg Machines Disabled 36 | . . . 1 1 . . . . . . . 2 . . . . . 1 . . 1 . 4 . . 4 22 Max in Single Turn 6 | . . . 1 1 . . . . . . . 1 . . . . . 1 . . . . 1 . . 1 6 Garrison Access 3 | . . . . 1 . . . . . . . . . . . . . . . . 1 . . . . . 1 Machines Repaired . | . . . . . . . . . . . . . . . . . . . . . . . . . . . . Machines Dismantled 1 | . . . . 1 . . . . . . . . . . . . . . . . . . . . . . . Machines Sabotaged . | . . . . . . . . . . . . . . . . . . . . . . . . . . . . Overloaded Fab Kills . | . . . . . . . . . . . . . . . . . . . . . . . . . . . . Hacking | -11 -10 -10 -9 -9 -9 -9 -6 -6 -6 -6 -5 -5 -5 -5 -5 -5 -5 -4 -4 -4 -4 -3 -3 -3 -2 -2 -2 --------- Run | Yrd Mat Min Mat Sto Rec Scr Fac Low Low Zio Pro Fac Was Fac Upp Upp Zhi Pro Fac Was Fac Res Arm Lab Res Qua Frg Machines Accessed 129 | . 8 . 12 11 10 2 10 . 1 1 . 11 . 9 . 2 4 1 . . 10 11 6 . 3 8 9 Terminals 70 | . 7 . 9 10 6 . 5 . . . . 5 . 2 . 1 . 1 . . 3 5 3 . 2 7 4 Fabricators 12 | . . . . . . . 2 . . . . 2 . 2 . . . . . . 1 1 2 . . . 2 Repair Stations 1 | . . . . . . . . . . . . . . 1 . . . . . . . . . . . . . Recycling Units 28 | . 1 . 1 . 4 . 3 . . . . 3 . 3 . . . . . . 5 3 1 . 1 . 3 Scanalyzers 6 | . . . 2 . . . . . . . . 1 . 1 . . . . . . . 1 . . . 1 . Garrison Access 3 | . . . . 1 . . . . . . . . . . . . . . . . 1 1 . . . . . Total Hacks 295 | . 17 . 32 23 33 5 17 . 1 2 . 25 . 13 . 2 17 5 . . 19 19 12 . 5 20 28 Successful 157 | . 14 . 14 15 21 5 5 . 1 2 . 7 . 5 . 2 17 5 . . 5 9 6 . 1 10 13 Failed 137 | . 3 . 17 8 12 . 12 . . . . 18 . 8 . . . . . . 14 10 6 . 4 10 15 Catastrophic 26 | . 1 . 2 1 1 . 1 . . . . 7 . 2 . . . . . . 3 2 1 . 2 2 1 Database Lockouts 1 | . . . 1 . . . . . . . . . . . . . . . . . . . . . . . . Manual 134 | . 13 . 17 12 24 . 12 . . 1 . 11 . 5 . . . . . . 11 7 3 1 4 3 10 Terminals 168 | . 15 . 26 22 23 . 9 . . . . 5 . 4 . 1 . 5 . . 6 10 6 . 4 16 16 Fabricators 19 | . . . . . . . 3 . . . . 3 . 2 . . . . . . 1 2 3 . . . 5 Repair Stations 1 | . . . . . . . . . . . . . . 1 . . . . . . . . . . . . . Recycling Units 60 | . 2 . 3 . 10 . 5 . . . . 11 . 4 . . . . . . 10 4 3 . 1 . 7 Scanalyzers 16 | . . . 3 . . . . . . . . 6 . 2 . . . . . . . 1 . . . 4 . Garrison Access 5 | . . . . 1 . . . . . . . . . . . . . . . . 2 2 . . . . . Terminal Hacks 81 | . 5 . 6 8 5 5 2 . 1 2 . . . 1 . 2 17 5 . . 1 4 3 . . 6 8 Record 15 | . . . . . . 4 . . . . . . . . . 1 5 5 . . . . . . . . . Part Schematic 6 | . . . . . . . . . . 2 . . . . . . 4 . . . . . . . . . . Robot Analysis 10 | . 1 . 1 . . . . . . . . . . . . . 4 . . . . 1 1 . . 2 . Prototype ID Bank 7 | . . . . . 2 . . . . . . . . . . . 4 . . . . . . . . . 1 Open Door 6 | . . . . 3 . 1 . . 1 . . . . . . 1 . . . . . . . . . . . Level Access Points 2 | . . . . . . . . . . . . . . . . . . . . . . . 1 . . . 1 Branch Access Points 4 | . 1 . . . . . 1 . . . . . . 1 . . . . . . . 1 . . . . . Terminal Index 3 | . 1 . . 1 1 . . . . . . . . . . . . . . . . . . . . . . Recycling Unit Index 2 | . . . . . . . 1 . . . . . . . . . . . . . . . . . . . 1 Alert Level 1 | . . . . . . . . . . . . . . . . . . . . . . . . . . . 1 Disarm Traps 3 | . . . . 2 . . . . . . . . . . . . . . . . . . . . . . 1 Security Status 1 | . . . . 1 . . . . . . . . . . . . . . . . . . . . . . . Recall Investigation 1 | . . . . . . . . . . . . . . . . . . . . . . 1 . . . . . Recall Extermination 1 | . . . . . . . . . . . . . . . . . . . . . . 1 . . . . . Hauler Manifests 1 | . . . 1 . . . . . . . . . . . . . . . . . . . . . . . . Registered Components 3 | . . . 1 . 1 . . . . . . . . . . . . . . . . . . . . 1 . Zone Layout 14 | . 2 . 3 1 1 . . . . . . . . . . . . . . . 1 . 1 . . 3 2 Proto ID Catalog 1 | . . . . . . . . . . . . . . . . . . . . . . . . . . . 1 Fabricator Hacks 12 | . . . . . . . 1 . . . . 2 . 1 . . . . . . . 2 2 . . . 4 Network Status 6 | . . . . . . . 1 . . . . 2 . 1 . . . . . . . 1 1 . . . . Load Schematic 2 | . . . . . . . . . . . . . . . . . . . . . . . . . . . 2 Build 4 | . . . . . . . . . . . . . . . . . . . . . . 1 1 . . . 2 Repair Station Hacks . | . . . . . . . . . . . . . . . . . . . . . . . . . . . . Recycling Unit Hacks 6 | . 1 . . . 4 . . . . . . 1 . . . . . . . . . . . . . . . Retrieve Components 6 | . 1 . . . 4 . . . . . . 1 . . . . . . . . . . . . . . . Scanalyzer 7 | . . . 1 . . . . . . . . 2 . . . . . . . . . . . . . 4 . Retrieve Study 7 | . . . 1 . . . . . . . . 2 . . . . . . . . . . . . . 4 . Garrison Access Hacks 2 | . . . . 1 . . . . . . . . . . . . . . . . 1 . . . . . . Seal Access 2 | . . . . 1 . . . . . . . . . . . . . . . . 1 . . . . . . Unauthorized Hacks 49 | . 8 . 7 6 12 . 2 . . . . 2 . 3 . . . . . . 3 3 1 . 1 . 1 Terminals 28 | . 7 . 7 6 8 . . . . . . . . . . . . . . . . . . . . . . Botnet 7 | . 2 . 1 1 3 . . . . . . . . . . . . . . . . . . . . . . Skim 21 | . 5 . 6 5 5 . . . . . . . . . . . . . . . . . . . . . . Fabricators . | . . . . . . . . . . . . . . . . . . . . . . . . . . . . Repair Stations 1 | . . . . . . . . . . . . . . 1 . . . . . . . . . . . . . Patch 1 | . . . . . . . . . . . . . . 1 . . . . . . . . . . . . . Recycling Units 20 | . 1 . . . 4 . 2 . . . . 2 . 2 . . . . . . 3 3 1 . 1 . 1 Tunnel 5 | . 1 . . . 4 . . . . . . . . . . . . . . . . . . . . . . Fedlink 15 | . . . . . . . 2 . . . . 2 . 2 . . . . . . 3 3 1 . 1 . 1 Scanalyzers . | . . . . . . . . . . . . . . . . . . . . . . . . . . . . Garrison Access . | . . . . . . . . . . . . . . . . . . . . . . . . . . . . Data Cores Recovered 4 | . . . 1 1 . . . . . . . . . . . . . . . . . . 1 . . 1 . Used 2 | . . . . . . . . . . . . . . . . . . . . . . . 1 . . 1 . Hacking Detections 83 | . 3 . 10 7 3 . 9 . . . . 9 . 5 . . . 1 . . 7 9 5 . 2 7 6 Full Trace Events 16 | . . . 1 1 . . 1 . . . . 1 . 2 . . . 1 . . 3 . 1 . 1 . 4 Feedback Events 1 | . . . . . . . 1 . . . . . . . . . . . . . . . . . . . . Corruption 1 | . . . . . . . 1 . . . . . . . . . . . . . . . . . . . . Feedback Blocked . | . . . . . . . . . . . . . . . . . . . . . . . . . . . . Robot Schematics Acquired 6 | . . . . . . . . . . . . . . . . . . . . . . . . . . . 6 Robots Built 2 | . . . . . . . . . . . . . . . . . . . . . . . . . . . 2 Authchips . | . . . . . . . . . . . . . . . . . . . . . . . . . . . . Time 148 | . . . . . . . . . . . . . . . . . . . . . . . . . . . 148 Total Robot Build Rating 18 | . . . . . . . . . . . . . . . . . . . . . . . . . . . 18 Part Schematics Acquired 16 | . . . . . . . . . . 2 . . . . . . 4 . . . . . . . . . 10 Parts Built 2 | . . . . . . . . . . . . . . . . . . . . . . 2 . . . . . Authchips . | . . . . . . . . . . . . . . . . . . . . . . . . . . . . Time 208 | . . . . . . . . . . . . . . . . . . . . . . 69 139 . . . . Total Part Build Rating 18 | . . . . . . . . . . . . . . . . . . . . . . 18 . . . . . Part Studies Acquired 7 | . . . 1 . . . . . . . . 2 . . . . . . . . . . . . . 4 . Parts Repaired . | . . . . . . . . . . . . . . . . . . . . . . . . . . . . Time . | . . . . . . . . . . . . . . . . . . . . . . . . . . . . Parts Recycled . | . . . . . . . . . . . . . . . . . . . . . . . . . . . . Recycled Matter . | . . . . . . . . . . . . . . . . . . . . . . . . . . . . Retrieved Matter . | . . . . . . . . . . . . . . . . . . . . . . . . . . . . Retrieved Components 20 | . 1 . . . 17 . . . . . . 2 . . . . . . . . . . . . . . . Parts Scanalyzed . | . . . . . . . . . . . . . . . . . . . . . . . . . . . . Part Schematics Acquired . | . . . . . . . . . . . . . . . . . . . . . . . . . . . . Parts Damaged . | . . . . . . . . . . . . . . . . . . . . . . . . . . . . Bothacking | -11 -10 -10 -9 -9 -9 -9 -6 -6 -6 -6 -5 -5 -5 -5 -5 -5 -5 -4 -4 -4 -4 -3 -3 -3 -2 -2 -2 ------------ Run | Yrd Mat Min Mat Sto Rec Scr Fac Low Low Zio Pro Fac Was Fac Upp Upp Zhi Pro Fac Was Fac Res Arm Lab Res Qua Frg Used RIF Installer . | . . . . . . . . . . . . . . . . . . . . . . . . . . . . Robots Hacked 14 | . . . . . 1 . . . . . . 1 . . . . 3 . 1 . . . 1 . . . 7 Non-combat 2 | . . . . . 1 . . . . . . 1 . . . . . . . . . . . . . . . Combat 9 | . . . . . . . . . . . . . . . . . 3 . . . . . 1 . . . 5 Robot Hacks Applied 12 | . . . . . 1 . . . . . . 1 . . . . 3 . . . . . 1 . . . 6 parse_system 11 | . . . . . 1 . . . . . . . . . . . 3 . . . . . 1 . . . 6 find_chute 1 | . . . . . . . . . . . . 1 . . . . . . . . . . . . . . . Manual 3 | . . . . . . . . . . . . . . . . . . . 1 . . . . . . . 2 Relay Couplers Released 3 | . . . . 2 . . . . . . . . . . . . . . . . . . . . . . 1 Machine Destruction 3 | . . . . 2 . . . . . . . . . . . . . . . . . . . . . . 1 Fabnet Peak Effective % . | . . . . . . . . . . . . . . . . . . . . . . . . . . . . Robots Rewired 11 | . . . . . 11 . . . . . . . . . . . . . . . . . . . . . . Allies Hacked . | . . . . . . . . . . . . . . . . . . . . . . . . . . . . Hacks Repelled . | . . . . . . . . . . . . . . . . . . . . . . . . . . . . Allies | -11 -10 -10 -9 -9 -9 -9 -6 -6 -6 -6 -5 -5 -5 -5 -5 -5 -5 -4 -4 -4 -4 -3 -3 -3 -2 -2 -2 -------- Run | Yrd Mat Min Mat Sto Rec Scr Fac Low Low Zio Pro Fac Was Fac Upp Upp Zhi Pro Fac Was Fac Res Arm Lab Res Qua Frg Total Allies 37 | . . . . . 11 . . . . 4 . . . . . . . . 1 19 . . . . . . 2 Largest Group 19 | . . . . . 8 8 . . . 4 4 4 . . . . . . 1 19 13 . . . . . 2 Highest-Rated Group 702 | . . . . . 159 159 . . . 226 226 226 . . . . . . 45 702 531 . . . . . 134 Highest-Rated Ally 96 | . . . . . 34 34 . . . 96 96 96 . . . . . . 45 50 50 . . . . . 67 Total Orders 4 | . . . . . . 1 . . . . . . . . . . . . . . . . . . . . 3 STAY 1 | . . . . . . 1 . . . . . . . . . . . . . . . . . . . . . ROAM 2 | . . . . . . . . . . . . . . . . . . . . . . . . . . . 2 FOLLOW 1 | . . . . . . . . . . . . . . . . . . . . . . . . . . . 1 Ally Attacks 155 | . . . . . 8 . . . . . 6 32 . . . . . . . 66 41 . . . . . 2 Total Damage 6992 | . . . . . 79 . . . . . 30 1068 . . . . . . . 3742 1684 . . . . . 389 Kills 30 | . . . . . . . . . . . 1 9 . . . . . . . 10 9 . . . . . 1 Allies Corrupted . | . . . . . . . . . . . . . . . . . . . . . . . . . . . . Allies Melted 35 | . . . . . . . . . . . . . . . . . . . . . . . . . . . 35 Intel | -11 -10 -10 -9 -9 -9 -9 -6 -6 -6 -6 -5 -5 -5 -5 -5 -5 -5 -4 -4 -4 -4 -3 -3 -3 -2 -2 -2 ------- Run | Yrd Mat Min Mat Sto Rec Scr Fac Low Low Zio Pro Fac Was Fac Upp Upp Zhi Pro Fac Was Fac Res Arm Lab Res Qua Frg Active Infowar (turns) 8171 | 10 907 242 243 . . 287 215 116 63 417 539 200 26 160 106 83 65 177 26 112 148 316 292 3 64 312 3042 Optics 2954 | . . . . . . . . . . . . . . . . . . . . . . . . . . . 2954 Sensors 1757 | . . . . . . 287 215 . . . . 182 26 152 105 83 59 177 26 112 138 . . . 25 170 . A.S.S. 1 | . . . . . . . . . . . . . . . . . . . . . . . . . . . 1 Terrain 2753 | . 436 95 . . . . . 116 63 417 539 200 26 160 106 83 61 169 . . 87 195 . . . . . Seismic 871 | 10 471 147 243 . . . . . . . . . . . . . . . . . . . . . . . . Decoding 735 | . . . . . . . . . . . . . . . . . . . . . 7 316 292 3 64 53 . Jamming 252 | . . . . . . . . . . . . . . . . . . . . . . . . . 23 142 87 ECM 1 | . . . . . . . . . . . . . . . . . . . . . . . . . . . 1 Robot Analysis Total 10 | . 1 . 1 . . . . . . . . . . . . . 4 . . . . 1 1 . . 2 . Derelict Logs Recovered 7 | . . . . . . . . 2 . 1 . . . . . 2 . 2 . . . . . . . . . Drone Launches . | . . . . . . . . . . . . . . . . . . . . . . . . . . . . Drone Recoveries . | . . . . . . . . . . . . . . . . . . . . . . . . . . . . Decoded 0b10 Intel 21 | . . . . . . . . . . . . . . . . . . . . . . 10 8 . 2 1 . Garrisons 1 | . . . . . . . . . . . . . . . . . . . . . . 1 . . . . . Patrols 10 | . . . . . . . . . . . . . . . . . . . . . . 4 4 . 1 1 . Investigations 1 | . . . . . . . . . . . . . . . . . . . . . . 1 . . . . . Guards 9 | . . . . . . . . . . . . . . . . . . . . . . 4 4 . 1 . . Exploration | -11 -10 -10 -9 -9 -9 -9 -6 -6 -6 -6 -5 -5 -5 -5 -5 -5 -5 -4 -4 -4 -4 -3 -3 -3 -2 -2 -2 ------------- Run | Yrd Mat Min Mat Sto Rec Scr Fac Low Low Zio Pro Fac Was Fac Upp Upp Zhi Pro Fac Was Fac Res Arm Lab Res Qua Frg Turns Passed 64898 | 106 918 242 1747 884 956 1554 351 116 63 417 539 200 26 160 106 83 65 177 26 112 148 316 292 3 64 313 54914 Spaces Moved 17902 | 57 524 190 1037 407 626 1203 837 236 276 938 470 685 118 651 367 413 177 552 123 240 578 989 798 15 207 860 4328 Core 14 | 14 . . . . . . . . . . . . . . . . . . . . . . . . . . . Treads 355 | 43 231 . 81 . . . . . . . . . . . . . . . . . . . . . . . . Legs 2898 | . . . 918 407 626 947 . . . . . . . . . . . . . . . . . . . . . Wheels 521 | . 293 190 38 . . . . . . . . . . . . . . . . . . . . . . . . Hover 3517 | . . . . . . . . . . . . . . . . . . . . . . . . . . . 3517 Flight 10597 | . . . . . . 256 837 236 276 938 470 685 118 651 367 413 177 552 123 240 578 989 798 15 207 860 811 Fastest Speed 7 | 50 80 95 83 123 123 107 18 18 18 18 18 17 17 17 19 19 19 19 12 15 15 15 7 19 19 13 19 Average Speed 46 | 132 122 95 130 140 123 119 18 18 18 18 18 17 17 17 19 19 19 19 14 15 15 17 18 19 20 19 35 Slowest Speed 200 | 160 160 110 200 200 123 123 85 18 18 18 18 19 17 19 19 19 88 19 15 15 25 99 19 19 94 24 120 Overloaded Moves 119 | . . . . . . . . . . . . . . . . . . . 11 . . . 36 . . 62 10 Propulsion Burnouts . | . . . . . . . . . . . . . . . . . . . . . . . . . . . . Robots Hopped 18 | . . . . . . . 4 . . . . 2 . 6 . . . . . . 6 . . . . . . Potential Cave-ins 86 | . . . . . . . . . . . . . . . . . . . . . 2 . . . . . 84 Cave-ins Triggered . | . . . . . . . . . . . . . . . . . . . . . . . . . . . . Exploration Rate (%) 54 | 5 83 52 91 48 98 84 29 48 46 85 65 21 94 28 54 65 60 79 5 92 20 36 60 12 8 88 65 Regions Visited 27 Branch Regions 16 Pre-discovered Areas 22 | . 2 . 4 2 7 . 1 . . 2 . . . . . . 3 1 . . . . . . . . . Known Exits Taken 13 | . 1 . 1 1 1 . 1 . . . . . . 1 1 1 1 1 . . 1 1 . 1 . . . Unknown Exits Taken 10 | 1 . 1 . . . 1 . 1 1 1 1 . . . . . . . . . . . 1 . 1 1 . Scrap Searched 24 | . . 2 . . . 7 . 1 2 2 2 . . . 3 2 . 3 . . . . . . . . . Spaces Dug 70 | . . . . . . . 2 . 1 . . 2 . 1 . . . 1 . 3 5 11 4 . 1 9 30 Terrain Destroyed 108 | . . . 13 8 . . 2 . 2 . . 3 . 1 . . . 1 . 3 9 11 4 . 1 9 41 Melee 35 | . . . . . . . . . . . . . . 1 . . . . . 3 3 11 4 . 1 9 3 Projectile 73 | . . . 13 8 . . 2 . 2 . . 3 . . . . . 1 . . 6 . . . . . 38 AOE . | . . . . . . . . . . . . . . . . . . . . . . . . . . . . Terrain Rammed . | . . . . . . . . . . . . . . . . . . . . . . . . . . . . Walls Destroyed . | . . . . . . . . . . . . . . . . . . . . . . . . . . . . Machines Disabled . | . . . . . . . . . . . . . . . . . . . . . . . . . . . . Actions | -11 -10 -10 -9 -9 -9 -9 -6 -6 -6 -6 -5 -5 -5 -5 -5 -5 -5 -4 -4 -4 -4 -3 -3 -3 -2 -2 -2 --------- Run | Yrd Mat Min Mat Sto Rec Scr Fac Low Low Zio Pro Fac Was Fac Upp Upp Zhi Pro Fac Was Fac Res Arm Lab Res Qua Frg Total 73766 | 80 672 221 1272 580 773 1324 1004 301 288 1185 919 761 123 688 402 416 207 618 130 310 617 1097 920 14 228 994 57622 Wait 54387 | . 60 8 87 59 94 87 53 58 5 247 442 23 6 22 34 2 . 59 3 68 11 52 92 . 4 59 52752 Move 17842 | 56 523 189 1036 406 625 1202 829 235 275 937 469 681 117 638 366 412 176 551 123 239 565 988 797 14 206 859 4328 Hop 18 | . . . . . . . 4 . . . . 2 . 6 . . . . . . 6 . . . . . . Pick Up 265 | 13 11 4 26 8 2 11 16 1 2 1 2 9 . 4 . 2 7 1 . . 5 15 2 . 3 9 111 Fast Attach 48 | . . . . 7 1 2 3 1 . . . 2 . 3 . . 6 . . . . 1 1 . 1 5 15 Attach 204 | 7 6 1 11 2 1 5 17 1 1 . . 5 . 2 1 . 3 1 3 . 7 9 3 . 5 8 105 Detach 39 | . . . . 1 1 1 5 . 1 . . 5 . . 1 . . . . . 3 1 1 . 1 1 17 Swap 86 | . 3 2 8 10 9 2 8 1 . . . 3 . 2 . . 1 1 . . 4 3 3 . 3 5 18 Drop 194 | . 3 1 21 14 6 14 12 . 2 . 2 10 . 7 . . 10 1 . . 3 7 4 . 4 11 62 Fire 287 | 4 66 16 83 62 16 . 2 . 2 . . 4 . . . . 4 2 1 . 6 . 2 . . . 17 Melee 327 | . . . . . 18 . 17 4 . . 4 2 . 4 . . . 2 . 3 7 21 15 . 1 37 192 Ram . | . . . . . . . . . . . . . . . . . . . . . . . . . . . . Kick 3 | . . . . 3 . . . . . . . . . . . . . . . . . . . . . . . Crush . | . . . . . . . . . . . . . . . . . . . . . . . . . . . . Escape Stasis 58 | . . . . . . . 38 . . . . 15 . . . . . . . . . . . . . . 5 Rewire . | . . . . . . . . . . . . . . . . . . . . . . . . . . . . Trap . | . . . . . . . . . . . . . . . . . . . . . . . . . . . . Miscellaneous 8 | . . . . 8 . . . . . . . . . . . . . . . . . . . . . . . Route ------- -11/Scrapyard -10/Materials (discovered 4 exits: *Mat x2 / *Min / Sub) -10/Mines -9/Materials (discovered 5 exits: *Mat x3 / [*Min] / *Sto) -9/Storage (discovered 2 exits: Mat / *Rec) -9/Recycling (discovered 2 exits: [*Fac] / *Scr) -9/Scraptown (discovered 2 exits: *Fac x2) -6/Factory (discovered 3 exits: *Fac / *Low x2) -6/Lower Caves -6/Lower Caves -6/Zion -5/Proximity Caves -5/Factory (discovered 3 exits: *Fac x2 / *Upp) -5/Waste -5/Factory (discovered 4 exits: *Fac x2 / *Upp x2) -5/Upper Caves -5/Upper Caves (discovered 2 exits: *Fac / *Zhi) -5/Zhirov -4/Proximity Caves -4/Factory (discovered 2 exits: Upp / Ext) -4/Waste -4/Factory -3/Research (discovered 4 exits: *Res / *Arm / Tes x2) -3/Armory (discovered 3 exits: *Res x2 / *Lab) -3/Lab -2/Research -2/Quarantine (discovered 3 exits: *Acc / [*Sec] / *Frg) -2/Protoforge (discovered 1 exit: Acc) History --------- Turn | Location | Event 8 | -11/Scrapyard | Discovered new exit (range 15) 107 | -11/Scrapyard | Entered Materials 205 | -10/Materials | Discovered new exit (range 16) 308 | -10/Materials | Build established: Mutant 470 | -10/Materials | Discovered new exit (range 13) 646 | -10/Materials | Discovered new exit (range 4) 673 | -10/Materials | Core integrity fell below 50% 730 | -10/Materials | Lost 3 parts (2n1w) 808 | -10/Materials | Identified exit to Mines 852 | -10/Materials | Learned location of Storage (-9) 910 | -10/Materials | Loaded intel: 9 trap records 957 | -10/Materials | Identified exit to Subcaves 994 | -10/Materials | Learned 4 Materials zone layouts 1025 | -10/Materials | Entered Mines 1048 | -10/Mines | Met a Derelict bent on vengeance 1163 | -10/Mines | Core integrity fell below 20% 1233 | -10/Mines | Discovered new exit (range 7) 1267 | -10/Mines | Entered Materials 1267 | -9/Materials | Evolved 2 slots: Propulsion x1, Utility x1 1268 | -9/Materials | Identified exit to Storage 1269 | -9/Materials | Identified exit to Materials 1790 | -9/Materials | Discovered new exit (range 12) 2243 | -9/Materials | Discovered exit to Materials (range 5) 2314 | -9/Materials | Learned 2 Materials zone layouts 2394 | -9/Materials | Loaded intel: 2 repair station locations 2599 | -9/Materials | Central database locked down 3014 | -9/Materials | Entered Storage 3237 | -9/Storage | Garrison activated, responded to threat 3572 | -9/Storage | Identified exit to Recycling 3673 | -9/Storage | Learned location of Zion (-6) 3709 | -9/Storage | Loaded intel: 7 trap records 3736 | -9/Storage | Learned location of Mines (-9) 3770 | -9/Storage | Used back door to open Recycling access 3821 | -9/Storage | Loaded intel: 1 garrison access location 3898 | -9/Storage | Entered Recycling 4029 | -9/Recycling | Build established: Scavenger-Mutant 4144 | -9/Recycling | Learned location of 3 exits from Materials 4226 | -9/Recycling | Learned location of 2 exits from Materials 4277 | -9/Recycling | Identified exit to Scraptown 4278 | -9/Recycling | Learned Storage emergency access door positions 4280 | -9/Recycling | Discovered new exit (range 16) 4286 | -9/Recycling | Learned Storage trap positions 4302 | -9/Recycling | Learned location of 2 exits from Materials 4364 | -9/Recycling | Learned Storage non-interactive machine intel 4457 | -9/Recycling | P-60 Hacker assimilated allied Rogue 2a 4753 | -9/Recycling | Scanned before Scraplab entrance 4772 | -9/Recycling | Entered Scraplab 4795 | -9/Recycling | Build established: Commander-Mutant 4854 | -9/Recycling | Entered Scraptown 4854 | -9/Scraptown | Accompanied by 8 allies 4854 | -9/Scraptown | System corruption cleaned by C-Scrubber 4901 | -9/Scraptown | Visited TADAMA 4912 | -9/Scraptown | Visited Symbiants 4984 | -9/Scraptown | Visited Awakened 4996 | -9/Scraptown | Visited Junk Repository 5031 | -9/Scraptown | Visited Cave Peace 5052 | -9/Scraptown | Visited The Evicted 5071 | -9/Scraptown | Visited Cyclists 5136 | -9/Scraptown | Discovered new exit (range 13) 5505 | -9/Scraptown | Visited UFD Registry 5505 | -9/Scraptown | Registered with UFD as "Fibershaft" 5531 | -9/Scraptown | Visited Curators Association 5570 | -9/Scraptown | Visited LU-1G1's Boring Crew 5587 | -9/Scraptown | Visited DA-N13 Charitable Foundation 5600 | -9/Scraptown | Found DCF Scrap (29 items) 5619 | -9/Scraptown | Visited Research Penetration Think Tank 5653 | -9/Scraptown | Visited Supply Room 5682 | -9/Scraptown | Visited Infowarlord's Domain 5693 | -9/Scraptown | Visited Observation Area 5711 | -9/Scraptown | Visited Junk Repository 5730 | -9/Scraptown | Visited Sword Containment 5744 | -9/Scraptown | Found Prototype Slashing Weapon 5744 | -9/Scraptown | Identified Companion Sword 5775 | -9/Scraptown | Visited Abandonware Association 5787 | -9/Scraptown | Learned abandonware demo "HACKBUD.EXE" 5787 | -9/Scraptown | Learned abandonware demo "REPAIR.EXE" 6214 | -9/Scraptown | Found Exp. Terrain Scan Processor 6344 | -9/Scraptown | Met Optimus 6344 | -9/Scraptown | Accepted into 0bPrime 6402 | -9/Scraptown | Discovered new exit (range 3) 6408 | -9/Scraptown | Entered Factory 6408 | -6/Factory | Evolved 6 slots: Power x1, Propulsion x4, Utility x1 6474 | -6/Factory | Spotted B-75 Beast 6511 | -6/Factory | Identified exit to Lower Caves 6711 | -6/Factory | Build established: Sprinter 6743 | -6/Factory | Loaded intel: 8 recycling unit locations 6748 | -6/Factory | Learned location of Protoforge (-2) 6758 | -6/Factory | Search patrols dispatched 6758 | -6/Factory | Discovered new exit (range 16) 6759 | -6/Factory | Entered Lower Caves 6837 | -6/Lower Caves | Learned Factory non-interactive machine intel 6838 | -6/Lower Caves | Encountered a Warlord checkpoint 6839 | -6/Lower Caves | Learned 8 Factory zone layouts 6846 | -6/Lower Caves | Discovered new exit (range 15) 6875 | -6/Lower Caves | Entered another Lower Caves area 6903 | -6/Lower Caves | Spotted B-75 Beast 6928 | -6/Lower Caves | Discovered new exit (range 20) 6938 | -6/Lower Caves | Entered Zion 6947 | -6/Zion | System corruption cleaned by Quarantine Array 6956 | -6/Zion | Discovered new exit (range 18) 7005 | -6/Zion | Learned Factory emergency access door positions 7009 | -6/Zion | Turned away by Imprinter 7042 | -6/Zion | Learned Factory emergency access door positions 7058 | -6/Zion | Received a visual enhancement algorithm 7115 | -6/Zion | Given A8's code to call for help 7127 | -6/Zion | Gained Derelict followers 7158 | -6/Zion | Enhanced Grunt warped into view, answering call for help 7160 | -6/Zion | Enhanced Grunt warped into view, answering call for help 7355 | -6/Zion | Entered Proximity Caves 7355 | -5/Proximity Caves | Accompanied by 4 allies 7605 | -5/Proximity Caves | Spotter reported a threat 7673 | -5/Proximity Caves | Discovered new exit (range 17) 7827 | -5/Proximity Caves | Spotter reported a threat 7894 | -5/Proximity Caves | Entered Factory 7894 | -5/Factory | Accompanied by 4 allies 7894 | -5/Factory | Evolved 2 slots: Utility x2 7895 | -5/Factory | Identified exit to Upper Caves 7897 | -5/Factory | Loaded intel: 226 non-interactive machine locations 7914 | -5/Factory | Discovered new exit (range 7) 7915 | -5/Factory | Identified exit to Factory 7917 | -5/Factory | Discovered exit to Factory (range 6) 7942 | -5/Factory | Spotted B-75 Beast 8044 | -5/Factory | Found Prototype Launcher 8044 | -5/Factory | Identified Mni. Smartbomb Launcher 8058 | -5/Factory | Loaded intel: 8 recycling unit locations 8094 | -5/Factory | Sucked down chute 8094 | -5/Factory | Entered Waste 8100 | -5/Waste | Spotted C-40 Crusher 8100 | -5/Waste | Spotted C-40 Crusher 8103 | -5/Waste | Spotted C-40 Crusher 8103 | -5/Waste | Spotted C-40 Crusher 8105 | -5/Waste | Spotted C-40 Crusher 8115 | -5/Waste | Discovered new exit (range 18) 8117 | -5/Waste | Spotted C-40 Crusher 8120 | -5/Waste | Identified exit to Factory 8120 | -5/Waste | Entered Factory 8144 | -5/Factory | Discovered exit to Factory (range 8) 8181 | -5/Factory | Loaded intel: 8 recycling unit locations 8201 | -5/Factory | Discovered exit to Factory (range 16) 8209 | -5/Factory | Build established: Scout 8280 | -5/Factory | Entered Upper Caves 8327 | -5/Upper Caves | Encountered a Warlord checkpoint 8371 | -5/Upper Caves | Discovered new exit (range 19) 8384 | -5/Upper Caves | Identified exit to Upper Caves 8386 | -5/Upper Caves | Entered another Upper Caves area 8396 | -5/Upper Caves | Discovered exit to Factory (range 12) 8450 | -5/Upper Caves | Discovered new exit (range 17) 8453 | -5/Upper Caves | Learned location of 1 exit from Factory 8468 | -5/Upper Caves | Identified exit to Zhirov 8469 | -5/Upper Caves | Entered Zhirov 8469 | -5/Zhirov | Discovered new exit (range 3) 8473 | -5/Zhirov | Met Zhirov 8477 | -5/Zhirov | Learned location of Quarantine (-2) 8477 | -5/Zhirov | Learned location of Testing (-3) 8477 | -5/Zhirov | Learned location of Command (-1) 8479 | -5/Zhirov | Zhirov requested help retrieving the SGEMP Prototype 8482 | -5/Zhirov | Found Alien Artifact 8483 | -5/Zhirov | Identified Integrated Dissipator 8483 | -5/Zhirov | Installed Integrated Dissipator, increased core heat dissipation (+20) 8490 | -5/Zhirov | Found Alien Artifact 8534 | -5/Zhirov | Identified exit to Proximity Caves 8534 | -5/Zhirov | Entered Proximity Caves 8598 | -4/Proximity Caves | Learned location of 1 exit from Research 8623 | -4/Proximity Caves | Learned Armory garrison access intel 8623 | -4/Proximity Caves | Learned Armory terminal intel 8623 | -4/Proximity Caves | Learned Extension terminal intel 8623 | -4/Proximity Caves | Learned Factory security intel 8623 | -4/Proximity Caves | Learned location of 2 exits from Lower Caves 8632 | -4/Proximity Caves | Spotted B-86 Titan 8709 | -4/Proximity Caves | Discovered exit to Factory (range 15) 8711 | -4/Proximity Caves | Entered Factory 8711 | -4/Factory | Evolved 2 slots: Propulsion x1, Utility x1 8712 | -4/Factory | Identified exit to Upper Caves 8713 | -4/Factory | Identified exit to Extension 8737 | -4/Factory | Sucked down chute 8737 | -4/Factory | Entered Waste 8742 | -4/Waste | Spotted C-40 Crusher 8749 | -4/Waste | Met Warlord forces unprepared to attack 8752 | -4/Waste | EMP discharged 8758 | -4/Waste | Allies destroyed C-40 Crusher 8761 | -4/Waste | Spotted C-40 Crusher 8763 | -4/Waste | Spotted C-40 Crusher 8763 | -4/Waste | Spotted C-40 Crusher 8764 | -4/Waste | Spotted C-40 Crusher 8769 | -4/Waste | Allies destroyed C-40 Crusher 8783 | -4/Waste | Spotted C-40 Crusher 8784 | -4/Waste | Allies destroyed C-40 Crusher 8790 | -4/Waste | Allies destroyed C-40 Crusher 8794 | -4/Waste | Allies destroyed C-40 Crusher 8804 | -4/Waste | Discovered new exit (range 10) 8810 | -4/Waste | Lost 6 allies 8810 | -4/Waste | Identified exit to Factory 8849 | -4/Waste | Entered Factory 8849 | -4/Factory | Accompanied by 13 allies 8860 | -4/Factory | Loaded intel: 8 recycling unit locations 8899 | -4/Factory | System corruption reached 10% 8993 | -4/Factory | Discovered new exit (range 15) 8996 | -4/Factory | Identified exit to Research 8997 | -4/Factory | Entered Research 8997 | -3/Research | Evolved 2 slots: Utility x2 8998 | -3/Research | Identified exit to Testing 9023 | -3/Research | Lost 4 parts (2p2u) 9129 | -3/Research | Loaded intel: 5 recycling unit locations 9177 | -3/Research | Discovered new exit (range 13) 9186 | -3/Research | Identified exit to Research 9233 | -3/Research | Found Prototype Launcher 9234 | -3/Research | Identified Adv. Micro-nuke Launcher 9252 | -3/Research | Identified exit to Armory 9269 | -3/Research | Spotted B-86 Titan 9300 | -3/Research | Fabricated Cmb. Linear Gravjet? 9313 | -3/Research | Entered Armory 9314 | -3/Armory | Met VL-GR5, who suggested a friendly competition 9314 | -3/Armory | Loaded intel: 11 terminal locations 9315 | -3/Armory | Loaded intel: 2 recycling unit locations 9413 | -3/Armory | Spotted B-86 Titan 9517 | -3/Armory | Build established: Hacker-Sprinter 9563 | -3/Armory | Search patrols dispatched 9579 | -3/Armory | Discovered new exit (range 4) 9605 | -3/Armory | Entered Lab 9605 | -3/Lab | Discovered exit to Research (range 9) 9608 | -3/Lab | Unable to decrypt terminal 9608 | -3/Lab | Opened the door to a hidden lab 9608 | -3/Lab | Entered Research 9608 | -2/Research | Evolved 2 slots: Utility x2 9624 | -2/Research | Loaded intel: 5 recycling unit locations 9652 | -2/Research | Discovered new exit (range 15) 9665 | -2/Research | Spotted B-90 Cyclops 9672 | -2/Research | Entered Quarantine 9673 | -2/Quarantine | Forged Quantum Companion 9674 | -2/Quarantine | Cryocooling Duct disabled 9689 | -2/Quarantine | Ambient heat levels rising (+20) 9689 | -2/Quarantine | Non-combat units ordered to evacuate 9749 | -2/Quarantine | Found Alien Energy Cannon 9761 | -2/Quarantine | Found Adv. Force Booster 9786 | -2/Quarantine | Spotted Alpha 7 9821 | -2/Quarantine | Found Alien Artifact 9823 | -2/Quarantine | Identified Subatomic Replicator 9823 | -2/Quarantine | Forged Prototype Slashing Weapon 9851 | -2/Quarantine | Found Alien Artifact 9854 | -2/Quarantine | Found Alien Artifact 9857 | -2/Quarantine | Found Alien Artifact 9922 | -2/Quarantine | Search patrols dispatched 9950 | -2/Quarantine | Discovered new exit (range 15) 9968 | -2/Quarantine | Spotted Fortress 9983 | -2/Quarantine | Discovered new exit (range 6) 9983 | -2/Quarantine | Discovered new exit (range 6) 9985 | -2/Quarantine | Entered Protoforge 9994 | -2/Protoforge | Identified exit to Access 10023 | -2/Protoforge | Spotted Hotshot 10038 | -2/Protoforge | Spotted Hotshot 10046 | -2/Protoforge | Superfortress began startup sequence 10046 | -2/Protoforge | Spotted B-90 Cyclops 10046 | -2/Protoforge | Spotted Hotshot 10050 | -2/Protoforge | Spotted AP7-3 10050 | -2/Protoforge | Spotted AP7-3 10059 | -2/Protoforge | Spotted Overlord 10061 | -2/Protoforge | Spotted SKR-2 10061 | -2/Protoforge | Spotted SKR-2 10061 | -2/Protoforge | Spotted SKR-2 10070 | -2/Protoforge | UFD initiated attack on Protoforge (Readiness: High) 10070 | -2/Protoforge | Loaded intel: 3 recycling unit locations 10099 | -2/Protoforge | Lost 6 parts (2p2n2u) 10149 | -2/Protoforge | Optimus greeted in Protoforge 10158 | -2/Protoforge | Found Prototype Ballistic Gun 10159 | -2/Protoforge | Identified Cep. XC Strikerail 10163 | -2/Protoforge | Found Prototype Device 10164 | -2/Protoforge | Identified Exp. ECM Suite 10167 | -2/Protoforge | Found Prototype Processor 10168 | -2/Protoforge | Identified Exp. Target Analyzer 10177 | -2/Protoforge | Lost 18 allies 10182 | -2/Protoforge | Found Prototype Processor 10183 | -2/Protoforge | Identified Exp. Core Analyzer 10187 | -2/Protoforge | Found Exp. Core Analyzer 10201 | -2/Protoforge | Met 7R-MNS 10240 | -2/Protoforge | Identified Terrabomb (x3) 10240 | -2/Protoforge | Used Terrabomb 10247 | -2/Protoforge | Lost 6 allies 10273 | -2/Protoforge | Found Prototype Launcher 10274 | -2/Protoforge | Identified Cep. Concussive Dispersal Blaster 10278 | -2/Protoforge | Identified Core Cannon 10281 | -2/Protoforge | Additional patrols dispatched to research labs 10316 | -2/Protoforge | Identified Transdimensional Reconstructor 10316 | -2/Protoforge | Forge Plexus network access discovered 10322 | -2/Protoforge | Spotted Immortal 10323 | -2/Protoforge | Spotted Immortal 10323 | -2/Protoforge | Spotted V181-j 10347 | -2/Protoforge | Spotted V013-q 10347 | -2/Protoforge | Spotted V398-x 10349 | -2/Protoforge | Spotted V610-a 10363 | -2/Protoforge | Destroyed V398-x 10380 | -2/Protoforge | Destroyed V610-a 10387 | -2/Protoforge | Found Cep. Hypertargeting System 10404 | -2/Protoforge | Destroyed Immortal 10413 | -2/Protoforge | Destroyed Immortal 10418 | -2/Protoforge | System corruption reached 10% 10419 | -2/Protoforge | Found Cep. Antimissile System 10421 | -2/Protoforge | Found Exp. Melee Analysis Suite 10422 | -2/Protoforge | Found Exp. Melee Analysis Suite 10442 | -2/Protoforge | Lost 4 parts (2n1u1w) 10461 | -2/Protoforge | Found Cep. Gyrokinetic System 10464 | -2/Protoforge | Found Cep. Combat Aerolev Unit 10470 | -2/Protoforge | Found Cep. Biometal Exoskeleton 10476 | -2/Protoforge | Found Faulty Cep. Gyrokinetic System 10483 | -2/Protoforge | Spotted V416-x 10486 | -2/Protoforge | Destroyed V416-x 10552 | -2/Protoforge | Spotted Decapitator 10552 | -2/Protoforge | Spotted Decapitator 10552 | -2/Protoforge | Spotted V546-h 10552 | -2/Protoforge | Spotted Decapitator 10552 | -2/Protoforge | Spotted V261-t 10557 | -2/Protoforge | Destroyed Decapitator 10560 | -2/Protoforge | Destroyed Decapitator 10561 | -2/Protoforge | Destroyed Decapitator 10589 | -2/Protoforge | Core integrity fell below 50% 10589 | -2/Protoforge | Destroyed V546-h 10600 | -2/Protoforge | Found Cep. Energy Mantle 10612 | -2/Protoforge | Found Cep. Beam Splitter 10613 | -2/Protoforge | Found Exp. Remote Shield 10616 | -2/Protoforge | Lost 7 parts (3p1n3u) 10617 | -2/Protoforge | Found Cep. RG22 Armor 10620 | -2/Protoforge | Found Cep. Core Shell 10621 | -2/Protoforge | Found Cep. Core Shell 10626 | -2/Protoforge | Found Exp. Force Field 10634 | -2/Protoforge | Found Cep. Projectile Intercept Suite 10639 | -2/Protoforge | Found Cep. Core Shell 10641 | -2/Protoforge | Found Cep. Core Shell 10645 | -2/Protoforge | Found Cep. Core Shell 10836 | -2/Protoforge | Found Crosscalibrator 10838 | -2/Protoforge | Found Cep. Weapon Articulator 10842 | -2/Protoforge | Spotted Immortal 10842 | -2/Protoforge | Spotted Immortal 10857 | -2/Protoforge | Spotted V541-c 10857 | -2/Protoforge | Spotted V433-j 10858 | -2/Protoforge | Spotted V147-o 10874 | -2/Protoforge | Destroyed V433-j 10877 | -2/Protoforge | Destroyed V541-c 10893 | -2/Protoforge | Destroyed V147-o 10895 | -2/Protoforge | Found Cep. Gyrokinetic System 10906 | -2/Protoforge | Found Prototype Processor 10907 | -2/Protoforge | Identified Exp. Armor Integrity Analyzer 10908 | -2/Protoforge | Lost 7 parts (3n4u) 10916 | -2/Protoforge | Found Cep. Melee Reflex Suite 10922 | -2/Protoforge | Found Cep. Chromion Battery 10929 | -2/Protoforge | Found Cep. Antigrav Storage Unit 10933 | -2/Protoforge | Found Cep. Matter Streamer 10937 | -2/Protoforge | Found Faulty Cep. Matter Streamer 10952 | -2/Protoforge | Found Cep. Antigrav Storage Unit 11076 | -2/Protoforge | Found Cep. Weapon Articulator 11101 | -2/Protoforge | UFD reported confirmed Drillbomb installation 11122 | -2/Protoforge | Spotted Decapitator 11122 | -2/Protoforge | Spotted Decapitator 11122 | -2/Protoforge | Spotted Decapitator 11129 | -2/Protoforge | Destroyed Decapitator 11131 | -2/Protoforge | Destroyed Decapitator 11131 | -2/Protoforge | Destroyed Decapitator 11149 | -2/Protoforge | Spotted V121-g 11154 | -2/Protoforge | Destroyed V121-g 11156 | -2/Protoforge | Found Cep. Network Penetrator 11158 | -2/Protoforge | Found Cep. Network Penetrator 11165 | -2/Protoforge | Found Faulty Exp. Active Sensor Suite 11172 | -2/Protoforge | Found Faulty Exp. Active Sensor Suite 11176 | -2/Protoforge | Spotted V107-u 11179 | -2/Protoforge | Spotted V818-w 11190 | -2/Protoforge | Destroyed V107-u 11197 | -2/Protoforge | Destroyed V818-w 11208 | -2/Protoforge | Spotted V427-k 11219 | -2/Protoforge | Destroyed V427-k 11244 | -2/Protoforge | Lost 4 parts (2p1n1u) 11254 | -2/Protoforge | Found Prototype Launcher 11255 | -2/Protoforge | Identified Enh. Gamma Bomb Array 11263 | -2/Protoforge | Found Cep. Gyrokinetic System 11274 | -2/Protoforge | Found Prototype Device 11275 | -2/Protoforge | Identified Exp. Actuator Array 11310 | -2/Protoforge | Spotted Immortal 11310 | -2/Protoforge | Spotted Immortal 11386 | -2/Protoforge | UFD reported confirmed Drillbomb installation 11397 | -2/Protoforge | Lost 9 parts (5n4u) 11410 | -2/Protoforge | Core integrity fell below 20% 11412 | -2/Protoforge | Destroyed V181-j 11457 | -2/Protoforge | UFD reported confirmed Drillbomb installation 11469 | -2/Protoforge | Used Terrabomb 11488 | -2/Protoforge | Found UFD Drillbomb 11491 | -2/Protoforge | Spotted Striker 11491 | -2/Protoforge | Spotted Striker 11604 | -2/Protoforge | Spotted Executioner 11606 | -2/Protoforge | Spotted Striker 11606 | -2/Protoforge | Spotted Striker 11627 | -2/Protoforge | Build established: Scavenger-Mutant 11665 | -2/Protoforge | Spotted Executioner 11682 | -2/Protoforge | Lost 9 allies 11682 | -2/Protoforge | Found Exp. Targeting Computer 11686 | -2/Protoforge | Spotted Executioner 11686 | -2/Protoforge | Destroyed Executioner 11703 | -2/Protoforge | Spotted Executioner 11774 | -2/Protoforge | Spotted Striker 11774 | -2/Protoforge | Spotted Striker 11780 | -2/Protoforge | Spotted Striker 11812 | -2/Protoforge | Lost 3 allies 15345 | -2/Protoforge | UFD reported confirmed Drillbomb installation 15630 | -2/Protoforge | UFD reported confirmed Drillbomb installation 15923 | -2/Protoforge | UFD reported confirmed Drillbomb installation 17395 | -2/Protoforge | UFD reported confirmed Drillbomb installation 24533 | -2/Protoforge | P-80 Master assimilated allied 02F**-D 24535 | -2/Protoforge | Spotted Striker 24537 | -2/Protoforge | P-80 Master assimilated allied 02F**-D 24538 | -2/Protoforge | Spotted Executioner 24538 | -2/Protoforge | Spotted Executioner 24538 | -2/Protoforge | Spotted Executioner 24546 | -2/Protoforge | Destroyed Executioner 24555 | -2/Protoforge | Spotted Striker 24558 | -2/Protoforge | Destroyed Striker 24568 | -2/Protoforge | Spotted Striker 24568 | -2/Protoforge | Spotted Striker 24573 | -2/Protoforge | Destroyed Striker 24576 | -2/Protoforge | Destroyed Striker 24633 | -2/Protoforge | Lost 11 allies 24665 | -2/Protoforge | Spotted Striker 24666 | -2/Protoforge | Spotted Executioner 24668 | -2/Protoforge | Spotted Striker 24707 | -2/Protoforge | Spotted Striker 24710 | -2/Protoforge | Destroyed Striker 24718 | -2/Protoforge | Spotted Executioner 24723 | -2/Protoforge | Spotted Executioner 24739 | -2/Protoforge | Spotted Executioner 24739 | -2/Protoforge | Spotted Executioner 24739 | -2/Protoforge | Destroyed Executioner 24801 | -2/Protoforge | Lost 17 allies 24841 | -2/Protoforge | Spotted Striker 24847 | -2/Protoforge | Spotted Striker 24932 | -2/Protoforge | P-80 Master assimilated allied K9-E4D(E) 24948 | -2/Protoforge | Spotted Striker 24952 | -2/Protoforge | Spotted Executioner 24952 | -2/Protoforge | Spotted Striker 24952 | -2/Protoforge | Spotted Striker 24952 | -2/Protoforge | Spotted Striker 24983 | -2/Protoforge | Destroyed Striker 25019 | -2/Protoforge | Spotted Executioner 25019 | -2/Protoforge | Spotted Executioner 25069 | -2/Protoforge | Lost 20 allies 31489 | -2/Protoforge | UFD reported confirmed Drillbomb installation 31523 | -2/Protoforge | UFD reported confirmed Drillbomb installation 61694 | -2/Protoforge | Spotted Striker 61705 | -2/Protoforge | P-80 Master assimilated allied 02F**-D 61741 | -2/Protoforge | Lost 3 allies 61844 | -2/Protoforge | Lost 3 allies 61866 | -2/Protoforge | Spotted Executioner 61869 | -2/Protoforge | Spotted Striker 61870 | -2/Protoforge | Destroyed Executioner 61948 | -2/Protoforge | Spotted Executioner 62000 | -2/Protoforge | Lost 5 allies 63250 | -2/Protoforge | Build established: Scavenger-Sprinter 64529 | -2/Protoforge | Spotted Executioner 64593 | -2/Protoforge | Spotted Striker 64593 | -2/Protoforge | Spotted Striker 64616 | -2/Protoforge | Spotted Executioner 64756 | -2/Protoforge | Fabricated D-83 Annihilator? 64758 | -2/Protoforge | Fabricated D-83 Annihilator (x1) 64880 | -2/Protoforge | Spotted Executioner 64888 | -2/Protoforge | Spotted Executioner 64889 | -2/Protoforge | Spotted Executioner 64890 | -2/Protoforge | Spotted Executioner 64899 | -2/Protoforge | Destroyed by Executioner with Helical Railgun Last Messages --------------- 64895_ L-61 Swordsman unfolds itself. 64895_ I-47 Archangel unfolds itself. 64895_ Slug penetrates L-61 Swordsman. 64895_ Slug penetrates Executioner. 64895_ HV Slug penetrates Executioner. 64895_ Executioner suffers critical hit (Destroy). Superquantum Companion releases a shadow of itself that zips off towards S-43 Plague. 64896_ S-43 Plague destroyed. 64896_ Slug penetrates Executioner. 64897_ HV Slug penetrates Executioner. 64897_ H-88 Terminator suffers critical hit (Destroy). 64897_ H-88 Terminator destroyed. 64897_ Slug penetrates 02F**-D. 64897_ Slug penetrates PH-WQD(E). 64899_ Slug penetrates Executioner. 64899_ Penetrated by Slug. [Achievement: Superachiever] Map ----- +----------------------------------------------------+ | % """"#####???????????????????????# " " | | % % " %" ######???????????????????????# " | | % % " " #????# ????????????????????# | | %% %% ""###### ##???????????????????# " | | "% % % % "######"###???????????????????# " " | | %%% % %%% ##???????????????????# "" | | %%% % ##???????????????????# " | | % "%% " " ##???????????????????# """ | | %%%% %%% %% % " ##??##???????????????# " | | %%&%% %%%% % T" ##?# #???????????????# | | %%%%%%%% %%%%% % % % "## #????????????????# | | %%%%%%%%%%%% % % #?????????????????# " | | %%%%%%%% %% % % % # ##????####?????????# " " | | %%%%%%%%%%%%% ;% ; ##??? # ####??###?# " | | % %%%%%%%%%% % % ##?# % ## #??# ### | | %%%%%%%%%%%%%% ## # # #### # # % | | % %%%%%%%%[*% # ## # # # | | % % %%%%%%%%%%%%% # # | | %%%%%%%%%%E%%%% # # | | %%%%%%%%[%%E%% % # # % # | | %%%% % [g%%%%=% % ### # " % | | %%%%% i %%%%%% # # # %"% | | %%% =%%%%% # %%% | | %%% %%%l%% % % #% % # % %% | | %%%%% %%%%%%%%%%% % %% # % % | | %%%% %%%%%%%% % %% % @ % % % # %% | | %%%%%% # %%%%%%%%% % %%% % %% # %%% | | %%%%%%% %%%%%%%% % %% % % % %% # % % % | | %%%%%% # %%%%%%%%%% % % % %% % #% %%%% | | %%%%%% %%%%%%%%%%%%%%%% % %% % # %%%% | | %%%%%%%%%%%%%%%%%%%%%%%%%! %%%% % #%%%%%% | | % %%%%%%%%%%%%%%s%%%%s%=[=!% % % #%%%%%% | | %%%%%% %%%%%%%%%%%%%%%[%%% %%%%%%%%%% %%%%%%% | | % %%%%%%%%%%%%%%%%%%%%%%%%%%%%%%%%%%%%%%%%%%%%%%% | | % %%%%%%%%%%%%%%%%%%%%%ss%%%E%%%%%%%%%%%%%%%%%%% | | % %%%%%%%%%%%%%%%%%%%%%EE%E%s%%%%%%%%%%%%%%%%%%% | | %%%%%%%%%%%%%%%%%%%%%%%Ass%%%%%%%A%%%%%%%%%%%%% | | %% %%%%%%%%%%%%%%%%%%%%SS%%%%%%%%%%%%%%%%%%%%%%%%% | | %%%%%%%%%%%%%%%%%%%%%%%SS%%%% %%%%% %%%%%%% | | %%%%%%%%% %%*%%%%%%%%%%%%%% % % %%%%%%% | | %%%%%%%%%%%%%%%%%%%%%%%%%%%%% %% %%%%%%%% | | %%%%%%%%%% %%%%%%%%%%%%%%%%%% % % %%%%%%% | | %%%%%%%%%%% %%%%%%%%%%%%%%%%%% % %%%%% | | %%%%% %% % %%%%%%%%%%%%%%%%% #% % %%%% %%% | | %%%%% %%%%%%%%%%%%%%%%%%%%%%% %% % %%% %%% | | %%% % %%%%%% %%%%%%%%%%%%%%% %% #%#% %% %%%% | | %%%% % % %% %%%%%%%%%%%%%%%% %% %%%%% % | | %%%%% %%%%%%%%%%%%%%%%%%% % %%%% # %%% % % | | %%%%%%%%%%%%%%%%%%%%% %% %% %%%% %% # % %%% %% | | %%%%%%%%%%%%%%%%%%%%% %% %%%%%%% %%%%%%% | +----------------------------------------------------+ Best States ------------- Heat Dissipation 107 Energy Generation 59 Energy Capacity 1650 Matter Stores 300 Matter Capacity 300 Sight Range 23 Robot Scan Range 16 Terrain Scan Range 20 Terrain Scan Density 1010 Jamming Range 12 Power Amplification 30 Additional Mass Support 6 Corruption Containment 12 Corruption Block 16 Armor Coverage 300 Resistance: TH 75 Core Shielding 90 Propulsion Shielding 90 Melee Speed Boost 50 Evasion (%) 78 Targeting Accuracy 30 Melee Accuracy 24 Core Analysis 11 Armor Integrity Analysis 50 Recoil Reduction 2 Offensive Hacking 50 Defensive Hacking 12 Authchip Count 1 Item Schematics ----------------- Ripper | -6/Zion | Free Barrage Gun | -6/Zion | Free Assault Drone Bay | -5/Zhirov | Free Exp. Heat Sink | -5/Zhirov | Free Exp. Optical Array | -5/Zhirov | Free Imp. Arc Thrower | -5/Zhirov | Free Prc. Matter Filter | -2/Protoforge | Archive Centrium Greatsword | -2/Protoforge | Archive Centrium Heavy Treads | -2/Protoforge | Archive Cld. Antimatter Reactor | -2/Protoforge | Archive Hds. Centrium Leg | -2/Protoforge | Archive Exp. EM Disruption Field | -2/Protoforge | Archive Cld. Field Propulsion Drive | -2/Protoforge | Archive Imp. Energy Well | -2/Protoforge | Archive Adv. Myomer Leg | -2/Protoforge | Archive Quantum Shading Machine | -2/Protoforge | Archive Robot Schematics ------------------ G-73 Enforcer | -2/Protoforge | Archive B-74 Champion | -2/Protoforge | Archive A-15 Conveyor | -2/Protoforge | Archive R-06 Scavenger | -2/Protoforge | Archive D-83 Annihilator | -2/Protoforge | Archive C-65 Expert | -2/Protoforge | Archive Fabricated ------------ Cmb. Linear Gravjet | x2 | -3/Research | Preloaded D-83 Annihilator | x1 | -2/Protoforge D-83 Annihilator | x1 | -2/Protoforge Repaired ---------- Nothing Studied --------- Lgt. Ion Engine | -9/Materials | Hacked Cesium-ion Thruster | -5/Factory | Hacked Lgt. Fission Core | -5/Factory | Hacked Adv. Remote Datajack | -2/Quarantine | Hacked Field Propulsion Array | -2/Quarantine | Hacked Field Propulsion Drive | -2/Quarantine | Hacked Impulse Thruster | -2/Quarantine | Hacked Alien Tech Used ----------------- Integrated Dissipator Subatomic Replicator Terrabomb Core Cannon Achievements -------------- Definitely A Prototype Friends Forever Inventory(Loot) Ponder That! Superachiever We Are One Worth The Wait Challenges ------------ None Game ------ Seed FireBackupTether Manual? 0 Play Time 04:31:07 Cumulative 576.4 hours Start 2025.11.29 @ 22:30:12 End 2025.11.30 @ 03:51:32 Sessions 2 Manual Loads 0 Difficulty Rogue Special Mode None Game No. 738 Rogue 738 Adventurer 0 Explorer 0 Win Type - Total 21 Types 10/1/2/2/2/0/2/2/0/0 Lore% 93 Gallery% 90 Achievement% 75 Wizard Run 0 Options --------- Layout 2 ASCII 0 Keyboard 0 Movement Mouse Keybinds 0 Fullscreen 1 Font 24/Terminus Map View 50x44 Zoom Use 0% Tactical HUD 1 Map Filters NONE Filters NONE Steam 1 RUN: d0eb6934-0335-45ea-94f0-34d9eab45a0d